{"text_format":"1","workbook":"xlsx","n_sheets":2,"sheets":["Questionario foglio unico","elenchi"],"not_rendered":{"charts":0,"images":0,"macros":0,"external_links":3,"defined_names":0,"comments":1,"pivot_tables":0},"unopened":[],"bounds":{"document_bytes":16777216,"sheet_cells":100000,"rows_first":2000,"rows_last":500,"rows_between":2000,"halvings":0,"cell_chars":16384,"cell_head_chars":4096},"cells_cut":0,"cells_raw":0,"read":"whole","date_system":"1900"}

{"sheet":"Questionario foglio unico","index":0,"n_rows":468,"n_cols":22,"rows_kept":468,"cut":false,"hidden":false,"merged":[[279,19,279,21],[279,0,279,18],[281,19,281,21],[281,0,281,18],[283,0,283,18],[283,19,283,21],[286,0,286,18],[286,19,286,21],[288,0,288,18],[288,19,288,21],[37,0,38,21],[39,0,39,21],[40,0,40,21],[41,0,41,21],[31,0,31,21],[32,0,32,9],[33,0,33,9],[34,0,34,9],[32,10,32,21],[33,10,33,21],[34,10,34,21],[453,14,453,15],[454,14,454,15],[455,14,455,15],[456,14,456,15],[457,14,457,15],[458,14,458,15],[427,0,427,21],[428,0,428,21],[429,0,429,21],[430,0,430,21],[431,0,431,21],[447,14,447,15],[448,14,448,15],[449,14,449,15],[450,14,450,15],[451,14,451,15],[452,14,452,15],[438,10,438,21],[438,0,438,9],[440,0,440,21],[442,19,442,21],[443,19,443,21],[444,19,444,21],[442,0,442,18],[406,4,406,16],[406,19,406,21],[407,4,407,16],[407,19,407,21],[411,0,411,21],[412,0,412,21],[413,0,413,21],[418,0,418,21],[423,1,423,5],[414,0,414,21],[406,17,406,18],[407,17,407,18],[409,14,409,16],[416,11,416,16],[420,0,420,14],[424,1,424,5],[425,1,425,5],[423,6,423,8],[424,6,424,8],[425,6,425,8],[422,6,422,8],[422,9,422,11],[423,9,423,11],[424,9,424,11],[392,0,392,21],[393,0,393,21],[394,0,394,21],[396,0,396,21],[397,4,397,16],[397,19,397,21],[439,0,439,12],[402,4,402,16],[402,19,402,21],[403,4,403,16],[403,19,403,21],[400,4,400,16],[400,19,400,21],[401,4,401,16],[401,19,401,21],[404,4,404,16],[404,19,404,21],[405,4,405,16],[405,19,405,21],[404,1,404,3],[405,1,405,3],[406,1,406,3],[407,1,407,3],[425,9,425,11],[388,0,388,21],[389,0,389,21],[390,0,390,21],[391,0,391,21],[295,0,295,21],[296,0,296,21],[354,0,354,21],[368,0,368,21],[384,0,385,21],[363,8,363,10],[364,8,364,10],[365,8,365,10],[369,3,369,5],[370,3,370,5],[371,3,371,5],[372,3,372,5],[373,3,373,5],[376,8,376,9],[377,8,377,9],[378,8,378,9],[379,8,379,9],[378,6,378,7],[379,6,379,7],[369,6,369,7],[294,0,294,18],[294,19,294,21],[282,0,282,21],[284,0,284,21],[285,0,285,21],[287,0,287,21],[386,0,386,21],[387,0,387,21],[290,0,290,18],[290,19,290,21],[293,0,293,18],[293,19,293,21],[374,3,374,5],[375,3,375,5],[376,3,376,5],[377,3,377,5],[378,3,378,5],[379,3,379,5],[370,8,370,9],[371,8,371,9],[372,8,372,9],[374,8,374,9],[373,8,373,9],[375,8,375,9],[263,0,263,21],[265,0,265,21],[267,0,267,21],[268,0,268,21],[257,0,257,21],[260,0,260,21],[261,0,261,21],[258,19,258,21],[259,19,259,21],[258,0,258,18],[259,0,259,18],[262,19,262,21],[264,19,264,21],[266,19,266,21],[262,0,262,18],[264,0,264,18],[266,0,266,18],[243,19,243,21],[243,0,243,18],[250,0,250,21],[252,0,252,21],[254,0,254,21],[255,0,255,21],[256,0,256,21],[244,0,244,21],[246,0,246,21],[247,0,247,21],[245,19,245,21],[245,0,245,18],[248,19,248,21],[249,19,249,21],[248,0,248,18],[249,0,249,18],[251,19,251,21],[251,0,251,18],[242,0,242,21],[232,0,232,21],[235,0,235,21],[238,19,238,21],[239,19,239,21],[240,19,240,21],[241,19,241,21],[241,0,241,18],[238,0,238,18],[239,0,239,18],[240,0,240,18],[227,0,227,21],[228,0,228,21],[229,0,229,21],[230,0,230,21],[222,4,222,9],[222,17,222,21],[223,4,223,9],[223,17,223,21],[222,0,222,3],[223,0,223,3],[222,10,222,14],[223,10,223,14],[215,0,215,3],[216,0,216,3],[220,4,220,9],[221,4,221,9],[217,0,217,21],[218,0,218,9],[218,12,218,21],[219,4,219,9],[226,0,226,21],[209,0,209,21],[210,0,210,21],[211,0,211,9],[211,12,211,21],[212,4,212,9],[206,4,206,9],[207,4,207,9],[206,0,206,3],[207,0,207,3],[208,0,208,3],[206,10,206,14],[207,10,207,14],[206,15,206,21],[207,15,207,21],[212,0,212,3],[212,10,212,14],[203,0,203,21],[204,0,204,9],[204,12,204,21],[205,4,205,9],[201,4,201,9],[202,4,202,9],[202,12,202,16],[202,17,202,21],[201,0,201,3],[202,0,202,3],[205,0,205,3],[205,10,205,14],[205,15,205,21],[201,10,201,14],[201,15,201,21],[182,0,182,6],[183,0,183,6],[184,0,184,6],[199,4,199,9],[200,4,200,9],[196,4,196,9],[197,0,197,21],[198,0,198,9],[198,12,198,21],[196,0,196,3],[199,0,199,3],[200,0,200,3],[196,10,196,14],[196,15,196,21],[199,10,199,14],[200,10,200,14],[199,15,199,21],[200,15,200,21],[184,15,184,21],[194,4,194,9],[195,4,195,9],[190,0,190,21],[191,0,191,21],[192,0,192,9],[192,12,192,21],[193,4,193,9],[193,0,193,3],[194,0,194,3],[195,0,195,3],[193,10,193,14],[194,10,194,14],[195,10,195,14],[193,15,193,21],[194,15,194,21],[195,15,195,21],[185,0,185,21],[186,0,186,21],[188,0,188,21],[164,2,164,9],[165,2,165,9],[161,0,161,21],[162,2,162,9],[163,2,163,9],[162,16,162,21],[163,16,163,21],[164,16,164,21],[165,16,165,21],[162,10,162,15],[163,10,163,15],[164,10,164,15],[165,10,165,15],[146,2,146,4],[146,20,146,21],[154,2,154,21],[155,2,155,21],[156,2,156,21],[157,2,157,21],[158,0,158,21],[159,0,159,21],[147,0,147,21],[148,0,148,21],[149,0,149,21],[151,0,151,21],[152,0,152,21],[153,0,153,21],[146,5,146,6],[146,7,146,8],[146,10,146,12],[146,13,146,15],[144,2,144,4],[144,20,144,21],[145,2,145,4],[145,20,145,21],[142,2,142,4],[142,20,142,21],[143,2,143,4],[143,20,143,21],[142,5,142,6],[143,5,143,6],[144,5,144,6],[145,5,145,6],[142,7,142,8],[143,7,143,8],[144,7,144,8],[145,7,145,8],[142,10,142,12],[143,10,143,12],[144,10,144,12],[145,10,145,12],[142,13,142,15],[143,13,143,15],[144,13,144,15],[145,13,145,15],[140,2,140,4],[140,20,140,21],[141,2,141,4],[141,20,141,21],[138,2,138,4],[138,20,138,21],[139,2,139,4],[139,20,139,21],[138,5,138,6],[139,5,139,6],[140,5,140,6],[141,5,141,6],[138,7,138,8],[139,7,139,8],[140,7,140,8],[141,7,141,8],[138,10,138,12],[139,10,139,12],[140,10,140,12],[141,10,141,12],[138,13,138,15],[139,13,139,15],[140,13,140,15],[141,13,141,15],[136,0,136,21],[123,0,123,21],[125,0,125,21],[126,0,126,21],[127,0,127,21],[128,0,128,21],[124,0,124,20],[137,0,137,9],[137,10,137,21],[129,0,129,21],[130,0,130,21],[131,0,131,21],[134,0,134,21],[115,0,115,1],[115,2,115,9],[118,0,118,21],[119,14,119,21],[117,0,117,20],[119,0,119,6],[120,0,120,6],[121,0,121,6],[122,0,122,6],[115,11,115,21],[119,12,119,13],[120,12,120,13],[121,12,121,13],[122,12,122,13],[119,7,119,11],[120,7,120,11],[121,7,121,11],[122,7,122,11],[120,14,120,21],[122,14,122,21],[111,0,111,21],[112,0,112,1],[112,2,112,9],[113,0,113,1],[113,2,113,9],[108,0,108,1],[108,2,108,9],[108,17,108,21],[109,0,109,21],[110,0,110,20],[108,11,108,16],[112,11,112,21],[113,11,113,21],[106,0,106,1],[106,2,106,9],[106,17,106,21],[107,0,107,1],[107,2,107,9],[107,17,107,21],[104,0,104,21],[105,0,105,1],[105,2,105,9],[105,17,105,21],[105,11,105,16],[107,11,107,16],[106,11,106,16],[103,0,103,20],[100,0,100,1],[100,2,100,6],[100,14,100,16],[100,17,100,21],[101,0,101,21],[98,0,98,1],[98,2,98,6],[98,14,98,16],[98,17,98,21],[99,0,99,21],[98,7,98,13],[100,7,100,13],[97,0,97,1],[97,2,97,6],[97,14,97,16],[97,17,97,21],[90,0,90,1],[90,2,90,6],[91,0,91,21],[92,0,92,1],[92,2,92,6],[95,0,95,20],[90,7,90,12],[92,7,92,12],[90,13,90,14],[92,13,92,14],[90,15,90,17],[92,18,92,21],[90,18,90,21],[84,10,84,14],[84,15,84,16],[84,17,84,18],[89,7,89,12],[89,13,89,14],[89,15,89,17],[89,18,89,21],[93,0,93,21],[96,0,96,21],[82,0,82,1],[82,2,82,4],[82,19,82,21],[83,0,83,21],[80,0,80,1],[80,2,80,4],[80,19,80,21],[81,0,81,21],[80,5,80,9],[82,5,82,9],[80,10,80,14],[82,10,82,14],[80,15,80,16],[82,15,82,16],[80,17,80,18],[82,17,82,18],[79,0,79,1],[79,2,79,4],[79,19,79,21],[74,0,74,21],[75,0,75,1],[75,2,75,4],[75,19,75,21],[76,0,76,21],[78,0,78,20],[75,5,75,9],[75,10,75,12],[75,13,75,14],[75,15,75,16],[75,17,75,18],[79,5,79,9],[79,10,79,14],[79,15,79,16],[79,17,79,18],[73,2,73,4],[73,19,73,21],[71,5,71,9],[73,5,73,9],[71,10,71,12],[73,10,73,12],[71,13,71,14],[73,13,73,14],[71,15,71,16],[73,15,73,16],[71,17,71,18],[73,17,73,18],[53,0,53,18],[53,19,53,21],[61,0,61,1],[61,2,61,4],[61,19,61,21],[62,0,62,21],[55,0,55,21],[57,0,57,21],[59,0,59,21],[60,0,60,1],[60,2,60,4],[60,19,60,21],[58,0,58,20],[60,5,60,9],[61,5,61,9],[60,10,60,14],[56,19,56,21],[56,0,56,18],[61,15,61,16],[61,10,61,14],[60,17,60,18],[61,17,61,18],[26,10,26,21],[27,10,27,21],[28,10,28,21],[29,10,29,21],[50,0,50,20],[48,19,48,21],[49,19,49,21],[51,19,51,21],[52,19,52,21],[48,0,48,18],[49,0,49,18],[51,0,51,18],[52,0,52,18],[43,19,43,21],[43,0,43,18],[45,19,45,21],[45,0,45,18],[46,19,46,21],[46,0,46,18],[47,19,47,21],[47,0,47,18],[42,0,42,21],[44,0,44,20],[35,0,35,9],[20,0,20,21],[21,0,21,9],[22,0,22,9],[23,0,23,9],[12,0,12,21],[13,0,13,21],[14,0,14,21],[15,0,15,21],[60,15,60,16],[35,10,35,21],[16,0,16,21],[18,0,18,21],[21,10,21,21],[22,10,22,21],[23,10,23,21],[27,0,27,9],[28,0,28,9],[30,0,30,21],[24,0,24,9],[25,0,25,9],[26,0,26,9],[29,0,29,9],[24,10,24,21],[25,10,25,21],[1,6,1,9],[6,0,6,21],[7,0,7,21],[8,0,8,21],[9,0,9,21],[10,0,10,21],[11,0,11,21],[2,16,2,21],[3,0,3,21],[4,0,4,21],[5,0,5,21],[2,2,2,3],[2,4,2,9],[1,2,1,5],[1,10,1,12],[1,13,1,16],[1,17,1,21],[2,10,2,12],[63,17,63,18],[65,17,65,18],[301,17,301,21],[300,5,300,16],[301,5,301,16],[66,0,66,21],[69,0,69,21],[70,0,70,1],[70,2,70,4],[70,19,70,21],[63,0,63,1],[63,2,63,4],[63,19,63,21],[65,0,65,1],[65,2,65,4],[65,19,65,21],[68,0,68,20],[63,5,63,9],[92,15,92,16],[97,7,97,13],[114,0,114,1],[121,14,121,21],[63,10,63,14],[65,10,65,14],[63,15,63,16],[65,15,65,16],[70,17,70,18],[71,0,71,1],[71,2,71,4],[71,19,71,21],[72,0,72,21],[73,0,73,1],[114,11,114,21],[114,2,114,9],[65,5,65,9],[70,5,70,9],[70,10,70,12],[70,13,70,14],[70,15,70,16],[88,0,88,21],[89,0,89,1],[89,2,89,6],[84,0,84,1],[84,2,84,4],[84,19,84,21],[85,0,85,21],[87,0,87,20],[84,5,84,9],[138,16,138,19],[139,16,139,19],[140,16,140,19],[141,16,141,19],[142,16,142,19],[143,16,143,19],[144,16,144,19],[145,16,145,19],[146,16,146,19],[166,0,166,21],[167,0,167,21],[168,0,168,21],[171,17,171,21],[172,17,172,21],[176,0,176,6],[177,0,177,6],[176,7,176,14],[169,17,169,21],[170,17,170,21],[170,13,170,16],[169,2,169,7],[170,2,170,7],[171,2,171,7],[172,2,172,7],[169,8,169,12],[170,8,170,12],[171,8,171,12],[172,8,172,12],[169,13,169,16],[171,13,171,16],[182,7,182,14],[183,7,183,14],[184,7,184,14],[182,15,182,21],[183,15,183,21],[172,13,172,16],[177,7,177,14],[176,15,176,21],[177,15,177,21],[173,0,173,21],[174,0,174,21],[175,0,175,21],[178,0,178,6],[178,7,178,14],[178,15,178,21],[179,0,179,6],[180,0,180,6],[181,0,181,6],[179,7,179,14],[180,7,180,14],[181,7,181,14],[179,15,179,21],[180,15,180,21],[181,15,181,21],[213,10,213,14],[214,10,214,14],[212,15,212,21],[213,15,213,21],[214,15,214,21],[219,0,219,3],[220,0,220,3],[221,0,221,3],[219,10,219,14],[220,10,220,14],[221,10,221,14],[219,15,219,21],[220,15,220,21],[221,15,221,21],[215,10,215,14],[216,10,216,14],[215,4,215,9],[215,17,215,21],[216,4,216,9],[216,17,216,21],[213,4,213,9],[214,4,214,9],[213,0,213,3],[214,0,214,3],[231,19,231,21],[231,0,231,18],[233,19,233,21],[233,0,233,18],[234,19,234,21],[234,0,234,18],[236,19,236,21],[236,0,236,18],[237,19,237,21],[237,0,237,18],[269,19,269,21],[270,19,270,21],[272,19,272,21],[269,0,269,18],[270,0,270,18],[272,0,272,18],[360,8,360,10],[361,8,361,10],[362,8,362,10],[299,0,299,4],[276,0,276,21],[277,0,277,21],[278,0,278,21],[280,0,280,21],[271,0,271,21],[273,0,273,21],[274,0,274,21],[289,0,289,21],[291,0,291,21],[292,0,292,21],[355,0,355,21],[356,0,356,21],[357,0,357,18],[358,0,358,15],[370,6,370,7],[371,6,371,7],[372,6,372,7],[373,6,373,7],[374,6,374,7],[375,6,375,7],[376,6,376,7],[377,6,377,7],[369,8,369,9],[378,11,378,12],[379,11,379,12],[369,13,369,14],[370,13,370,14],[371,13,371,14],[372,13,372,14],[373,13,373,14],[374,13,374,14],[375,13,375,14],[376,13,376,14],[377,13,377,14],[378,13,378,14],[379,13,379,14],[369,11,369,12],[370,11,370,12],[371,11,371,12],[372,11,372,12],[373,11,373,12],[374,11,374,12],[375,11,375,12],[376,11,376,12],[377,11,377,12],[376,17,376,18],[377,17,377,18],[378,17,378,18],[379,17,379,18],[369,15,369,16],[370,15,370,16],[371,15,371,16],[372,15,372,16],[373,15,373,16],[374,15,374,16],[375,15,375,16],[376,15,376,16],[377,15,377,16],[378,20,378,21],[379,20,379,21],[397,1,397,3],[398,1,398,3],[369,20,369,21],[370,20,370,21],[372,20,372,21],[371,20,371,21],[373,20,373,21],[374,20,374,21],[375,20,375,21],[376,20,376,21],[377,20,377,21],[378,15,378,16],[379,15,379,16],[369,17,369,18],[370,17,370,18],[371,17,371,18],[372,17,372,18],[381,17,381,20],[397,17,397,18],[373,17,373,18],[374,17,374,18],[375,17,375,18],[443,0,443,18],[444,0,444,18],[432,0,432,21],[433,0,433,21],[434,10,434,21],[434,0,434,9],[435,0,435,9],[436,0,436,9],[435,10,435,21],[436,10,436,21],[437,10,437,21],[437,0,437,9],[445,0,445,18],[446,0,446,18],[447,19,447,21],[448,19,448,21],[449,19,449,21],[450,19,450,21],[451,19,451,21],[452,19,452,21],[453,19,453,21],[447,12,447,13],[448,12,448,13],[449,12,449,13],[450,12,450,13],[451,12,451,13],[452,12,452,13],[453,12,453,13],[447,10,447,11],[447,8,447,9],[448,8,448,9],[449,8,449,9],[450,8,450,9],[451,8,451,9],[452,8,452,9],[453,8,453,9],[454,19,454,21],[455,19,455,21],[456,19,456,21],[457,19,457,21],[458,19,458,21],[447,16,447,18],[448,16,448,18],[449,16,449,18],[450,16,450,18],[451,16,451,18],[452,16,452,18],[453,16,453,18],[454,16,454,18],[455,16,455,18],[456,16,456,18],[457,16,457,18],[458,16,458,18],[448,10,448,11],[449,10,449,11],[450,10,450,11],[451,10,451,11],[452,10,452,11],[453,10,453,11],[454,10,454,11],[455,10,455,11],[456,10,456,11],[455,12,455,13],[456,12,456,13],[463,19,463,21],[465,19,465,21],[466,19,466,21],[467,19,467,21],[460,0,460,18],[461,0,461,21],[462,0,462,18],[463,0,463,18],[464,0,464,21],[465,0,465,18],[466,0,466,18],[467,0,467,18],[457,12,457,13],[458,12,458,13],[457,10,457,11],[458,10,458,11],[366,0,366,15],[360,0,360,7],[404,17,404,18],[405,17,405,18],[459,0,459,21],[462,19,462,21],[454,8,454,9],[455,8,455,9],[456,8,456,9],[457,8,457,9],[458,8,458,9],[447,5,447,7],[448,5,448,7],[449,5,449,7],[450,5,450,7],[451,5,451,7],[452,5,452,7],[453,5,453,7],[454,5,454,7],[455,5,455,7],[456,5,456,7],[457,5,457,7],[458,5,458,7],[454,12,454,13],[0,0,0,17],[0,18,0,21],[399,1,399,3],[400,1,400,3],[401,1,401,3],[402,1,402,3],[403,1,403,3],[398,4,398,16],[398,19,398,21],[399,4,399,16],[399,19,399,21],[398,17,398,18],[399,17,399,18],[400,17,400,18],[401,17,401,18],[402,17,402,18],[403,17,403,18],[359,0,359,15],[360,12,360,16],[361,12,361,16],[362,12,362,16],[363,12,363,16],[364,12,364,16],[365,12,365,16]]}
["QUESTIONARIO DI VERIFICA ESPONENTI AZIENDALI - Sezioni da 1 a 4 da compilare a cura dell'esponente; Sezione 5 a cura dell'intermediario"]
["ISTRUZIONI COMPILAZIONE","FOGLIO ANAGRAFE","Sezione 1 ONORABILITA' - CORRETTEZZA",null,null,null,"Sezione 2. REQUISITI DI PROFESSIONALITA' \nE CRITERI DI COMPETENZA",null,null,null,"Sezione 3 INDIPENDENZA",null,null,"Sezione 4 DISPONIBILITA' DI TEMPO \n(Time Committment)",null,null,null,"Sezione 5 COMPOSIZIONE COLLETTIVA (da compilare a cura dell'intermediario) "]
["Legenda campi","menu a tendina","testo libero",null," compilare, salvare in formato pdf e inoltrare via PEC",null,null,null,null,null,"all 3A Rapporti di natura finanziaria"]
[]
["ISTRUZIONI PER LA COMPILAZIONE"]
["Il template va denominato ABI_FAP_ORGANODIAPPARTENENZA/CARICA_ DATA"]
["Inserire le date nella forma GG/MM/AAAA"]
["Inserire gli importi in migliaia di euro, seguendo le ordinarie regole di arrotondamento e utilizzando il punto per indicare le migliaia e la virgola per i decimali."]
["FOGLIO ANAGRAFE"]
["Inserire il codice ABI su 5 cifre"]
["PERIMETRO DI COMPILAZIONE"]
["Foglio 1 (Onorabilità e Correttezza) va compilato dagli esponenti di tutte le tipologie di enti e dai \"responsabili delle principali funzioni aziendali\" delle \"banche di maggiori dimensioni o complessità operativa\".\n"]
["Foglio 2 (Professionalità e Competenza) va compilato: \ncon riferimento alla Professionalità, dagli esponenti di tutte le tipologie di enti; \ncon riferimento alla Competenza: \n- da tutti gli esponenti degli intermediari bancari; \n- dai \"responsabili delle principali funzioni aziendali\" delle \"banche di maggiori dimensioni o complessità operativa\"; \n- dal Presidente, gli esponenti con incarichi esecutivi e i componenti del collegio sindacale, del consiglio di sorveglianza e del comitato per il controllo sulla gestione di \"intermediari finanziari significativi\", di istituti di moneta elettronica, di \"istituti di pagamento rilevanti per la natura specifica dell'attività svolta\".\n"]
["Foglio 3 (Indipendenza) va compilato:\n- il par. 3.1 (Requisiti degli amministratori indipendenti), dagli intermediari bancari e dagli intermediari non bancari ove la presenza di amministratori indipendenti sia richiesta da disposizioni di legge, regolamentari o statutarie (es., intermediari quotati o per i quali la presenza di amministratori indipendenti sia prevista da statuto); \n- il par. 3.2 (Requisiti dei componenti del Collegio Sindacale), dai sindaci di tutte le tipologie di intermediari;\n- il par. 3.3 (Criteri di indipendenza di giudizio): dagli esponenti degli intermediari bancari, degli \"intermediari finanziari significativi\", degli istituti di moneta elettronica, degli \"istituti di pagamento rilevanti per la natura specifica dell'attività svolta\" e dei sistemi di garanzia dei depositanti.\n"]
["Foglio 4  (Time Commitment): va compilato dagli esponenti dei soli intermediari bancari\n"]
["Foglio 5 (Composizione collettiva): non va compilato dai singoli esponenti, ma dagli organi competenti dei soli intermediari bancari a seguito della verifica dell’idoneità degli esponenti nominati. Per semplicità, tale foglio, in sede di trasmissione alla Banca d'Italia, può essere allegato al questionario redatto dal Presidente dell'Organo competente per la verifica."]
["Si precisa che eventuali ulteriori istruzioni per la compilazione, anche in relazione alla tipologia di carica rivestita dall'esponente, sono contenute in ciascun Foglio "]
[]
["FOGLIO ANAGRAFE"]
[]
["Dati dell'esponente"]
["Nome"]
["Cognome"]
["Codice fiscale"]
["Luogo di nascita"]
["Data di nascita"]
["Carica assunta nell'ente",null,null,null,null,null,null,null,null,null,"Presidente CdA"]
[null,null,null,null,null,null,null,null,null,null,"Testo libero"]
["Data di decorrenza della nomina",null,null,null,null,null,null,null,null,null,"NOMINA SOTTOPOSTA ALLA PREVENTIVA VALUTAZIONE DELL'ORGANO DI VIGILANZA"]
["data di compilazione: ________________",null,null,null,null,null,null,null,null,null,"                                                                                    Firma esponente: _______________________________\nNota: in caso di stampa e acquisizione in formato pdf siglare tutte le pagine"]
[]
["Dati dell'intermediario in cui è assunta la carica"]
["Codice ABI"]
["Denominazione sociale"]
["Tipologia intermediario"]
[null,null,null,null,null,null,null,null,null,null,"Testo libero"]
[]
["Si rammenta che le definizioni di \"banca di maggiori dimensioni o complessità operativa\", \"banca di minori dimensioni o complessità operativa\", \"Intermediario finanziario significativo\" e \"IP rilevante per la natura specifica dell'attività svolta\" sono previste all'art. 1 (Definizioni) del Decreto e qui richiamate per brevità:\nSono banche di maggiori dimensioni o complessità operativa: i) le banche considerate significative ai sensi dell’art. 6, par. 4 del Regolamento (UE) n. 1024/2013 che attribuisce alla Banca centrale europea compiti specifici in materia di vigilanza prudenziale degli enti creditizi; ii) le banche quotate; iii) le banche che si sono collocate in tale categoria in esito al processo di valutazione di cui alla Circ .285, parte prima, titolo IV, capitolo 1, sezione 1; ai fini dell'applicazione del DM 169/20, non rientrano tra le banche di maggiori dimensioni o complessità operativa le banche di credito cooperativo;\nsono banche intermedie: le banche con un attivo compreso tra i 5 mld di euro e i 30 mld di euro, fatto salvo l’esito della valutazione di cui al par. 4.1 di questa sezione materia di gorverno societario delle banche e dei gruppi bancari);\nsono banche di minori dimensioni o complessità operativa: le banche con un attivo pari o inferiore a 5 mld di euro, fatto salvo l’esito della valutazione di cui al par. 4.1 di questa sezione.\nSono \"intermediari finanziari significativi\" (Art. 1, c. 1, lett. m) del Decreto) gli intermediari finanziari ex art. 106 TUB per i quali ricorre almeno una delle seguenti condizioni:\n— sono autorizzati all’utilizzo di sistemi IRB per il calcolo dei requisiti a fronte del rischio di credito, o del metodo AMA per il calcolo dei requisiti a fronte del rischio operativo, oppure di modelli interni per la quantificazione dei requisiti sui rischi di mercato;\n— il totale attivo è superiore a € 250 mln (si fa riferimento alla somma delle seguenti voci da bilancio: 1) “Totale attivo” dello Stato Patrimoniale; 2) “Totale Garanzie e Impegni” di cui alla Tabella D.1 della Nota Integrativa);\n— sono capogruppo di un gruppo finanziario;\n— hanno effettuato operazioni di raccolta tramite strumenti finanziari diffusi tra il pubblico;\n— hanno originato operazioni di cartolarizzazione;\n— svolgono attività di concessione di finanziamenti, in via prevalente o rilevante, nella forma del rilascio di garanzie, pur non essendo un Confidi;\n— sono autorizzati anche alla prestazione di servizi di pagamento, all’emissione di moneta elettronica o alla prestazione di servizi di investimento;\n— utilizzano strumenti finanziari derivati per assumere posizioni speculative;\n— assumono il ruolo di servicer in operazioni di cartolarizzazione;\n— svolgono l’attività di erogazione di finanziamenti agevolati e/o di gestione di fondi pubblici\n(Fonte: Circ. 288 Titolo IV, Capitolo 14, Sezione III).\nSono \"istituti di pagamento rilevanti per la natura specifica dell'attività svolta\" (Art. 1, c. 1, lett. n) del Decreto) gli istituti di pagamento autorizzati a detenere disponibilità della clientela in conti di pagamento, ai sensi dell'articolo 1, comma 1, lettera hsepties.1), n. 3), del Testo Unico Bancario (TUB) e gli istituti di pagamento che prestano il servizio di rimessa di denaro, di cui all'articolo 1, comma 1, lettera h-septies.1) n. 6) del TUB, esclusi quelli aventi un'operatività limitata ai sensi di quanto previsto dal testo unico bancario e relative disposizioni attuative.                                                                                                                                         Sono \"sistemi di garanzia dei depositanti\": i) i sistemi di garanzia dei depositanti garanzia dei depositanti istituiti e riconosciuti in Italia; ii) i sistemi di tutela istituzionale di cui all’articolo 113, paragrafo 7, del regolamento (UE) n. 575/2013 riconosciuti come sistemi di garanzia dei depositanti (Fonte: Articolo 96, commi 1 e 1bis, del TUB)"]
[]
["1 - ONORABILITA' - CORRETTEZZA"]
[]
["1.1) ONORABILITA'"]
["L'esponente dichiara che:"]
["a) si trova in stato di interdizione legale, ovvero in un’altra delle situazioni previste dall’articolo 2382 del codice civile;",null,null,null,null,null,null,null,null,null,null,null,null,null,null,null,null,null,null,"Inserire risposta"]
["b)  è stato condannato con sentenza definitiva:"]
["   b.1)    a pena detentiva per un reato previsto dalle disposizioni in materia societaria e fallimentare, bancaria, finanziaria, assicurativa, di servizi di pagamento, antiriciclaggio, di intermediari abilitati all’esercizio dei servizi di investimento e delle gestioni collettive del risparmio, di mercati e gestione accentrata, di strumenti finanziari, di appello al pubblico risparmio, di emittenti nonché per uno dei delitti previsti dagli articoli 270-bis, 270-ter, 270-quater, 270-quater.1, 270-quinquies, 270-quinquies.1, 270 quinquies.2, 270-sexies, 416, 416-bis, 416-ter, 418, 640 del codice penale;",null,null,null,null,null,null,null,null,null,null,null,null,null,null,null,null,null,null,"Inserire risposta"]
["   b.2)    alla reclusione, per un tempo non inferiore a un anno, per un delitto contro la pubblica amministrazione, contro la fede pubblica, contro il patrimonio, in materia tributaria;",null,null,null,null,null,null,null,null,null,null,null,null,null,null,null,null,null,null,"Inserire risposta"]
["   b.3)    alla reclusione per un tempo non inferiore a due anni per un qualunque delitto non colposo;",null,null,null,null,null,null,null,null,null,null,null,null,null,null,null,null,null,null,"Inserire risposta"]
["c)  è stato sottoposto a misure di prevenzione disposte dall’autorità giudiziaria ai sensi del decreto legislativo 6 settembre 2011, n.159, e successive modificazioni ed integrazioni;",null,null,null,null,null,null,null,null,null,null,null,null,null,null,null,null,null,null,"Inserire risposta"]
["d) si trova, all’atto dell’assunzione dell’incarico, in stato di interdizione temporanea dagli uffici direttivi delle persone giuridiche e delle imprese ovvero di interdizione temporanea o permanente dallo svolgimento di funzioni di amministrazione, direzione e controllo ai sensi dell’articolo 144-ter, comma 3, del testo unico bancario e dell’articolo 190-bis, commi 3 e 3-bis, del testo unico della finanza, o in una delle situazioni di cui all’articolo 187-quater del testo unico della finanza.",null,null,null,null,null,null,null,null,null,null,null,null,null,null,null,null,null,null,"Inserire risposta"]
["e) è stato condannato con sentenza definitiva su richiesta delle parti ovvero a seguito di giudizio abbreviato, alle seguenti pene:"]
["   e.1) Comma 1, lettera b), numero 1, salvo il caso dell’estinzione del reato ai sensi dell’articolo 445, comma 2, del codice di procedura penale; ",null,null,null,null,null,null,null,null,null,null,null,null,null,null,null,null,null,null,"Inserire risposta"]
["   e.2) Comma 1, lettera b), numero 2 e numero 3, nella durata in essi specificata, salvo il caso dell’estinzione del reato ai sensi dell’articolo 445, comma 2, del codice di procedura penale;",null,null,null,null,null,null,null,null,null,null,null,null,null,null,null,null,null,null,"Inserire risposta"]
["f) non ricorrono  situazioni equivalenti a quelle di cui alle lettere precedenti, con riferimento a fattispecie disciplinate in tutto o in parte da ordinamenti stranieri",null,null,null,null,null,null,null,null,null,null,null,null,null,null,null,null,null,null,"Inserire risposta"]
[]
["1.2) CORRETTEZZA"]
["L'esponente dichiara di trovarsi in una delle situazioni rilevanti ai fini del requisito della correttezza.",null,null,null,null,null,null,null,null,null,null,null,null,null,null,null,null,null,null,"Inserire risposta"]
["In caso di risposta affermativa, compilare la sezione seguente"]
["a) Procedimenti penali conclusi"]
["Nota metodologica: indicare condanne penali irrogate con sentenze  definitive, sentenze  definitive che applicano la pena su richiesta delle parti ovvero a seguito di giudizio abbreviato, decreti penali di condanna, divenuti irrevocabili, e misure cautelari personali relative a un reato previsto dalle disposizioni in materia societaria e fallimentare, bancaria, finanziaria, assicurativa, di servizi di pagamento, di usura, antiriciclaggio, tributaria, di intermediari abilitati all’esercizio dei servizi di investimento e delle gestioni collettive del risparmio, di mercati e gestione accentrata di strumenti finanziari, di appello al pubblico risparmio, di emittenti nonché per uno dei delitti previsti dagli articoli 270 -bis , 270 -ter , 270 -quater , 270 -quater .1, 270 -quinquies , 270 -quinquies .1, 270 -quinquies .2, 270 -sexies , 416, 416 -bis , 416 -ter , 418, 640 del codice penale (Decreto MEF art 4. 2a). b) condanne penali irrogate con sentenze  definitive, sentenze  definitive che applicano la pena su richiesta delle parti ovvero a seguito di giudizio abbreviato, decreti penali di condanna divenuti irrevocabili, e misure cautelari personali relative a delitti diversi da quelli di cui alla lettera a); applicazione, anche in via provvisoria, di una delle misure di prevenzione disposte dall’autorità giudiziaria ai sensi del decreto legislativo 6 settembre 2011, n. 159; (Decreto MEF art.4 2b)"]
["RIFERIMENTO",null,"DATA PROVVEDIMENTO",null,null,"AUTORITA'",null,null,null,null,"TIPO PROVVEDIMENTO",null,null,null,null,"NATURA DEL CAPO D'ACCUSA / IMPUTAZIONE",null,"ANNO IN CUI SI SONO SVOLTI I FATTI",null,"ALTRE INFORMAZIONI"]
["1) Procedimento numero….",null,null,null,null,null,null,null,null,null,null,null,null,null,null,null,null,null,null,"per es. cause di estinzione del reato, riabilitazione, revoca della sentenza, patteggiamento, rito abbreviato etc…."]
["Testo libero"]
["2) Procedimento numero…."]
["Testo libero"]
["3) Procedimento numero…."]
["Testo libero"]
[]
["b) Procedimenti penali pendenti"]
["Nota metodologica: l) indagini e procedimenti penali in corso relativi ai reati di cui alle lettere a) e b) dell'articolo 4 DECRETO MEF (elencati nella domanda precedente); si includono anche le sentenze di condanna non definitive"]
["RIFERIMENTO",null,"AUTORITA'",null,null,"FASE DEL PROCEDIMENTO ",null,null,null,null,"NATURA DEL CAPO D'ACCUSA / IMPUTAZIONE",null,null,"ANNO IN CUI SI SONO SVOLTI I FATTI",null,"DATA PROSSIMA UDIENZA",null,"TIPO PROSSIMA UDIENZA",null,"ALTRE INFORMAZIONI"]
["1) Procedimento numero…."]
["Testo libero"]
["2) Procedimento numero…."]
["Testo libero"]
["3) Procedimento numero…."]
["Testo libero"]
[]
["c) Sentenze definitive di condanna al risarcimento dei danni per atti compiuti ello svolgimento di incarichi in soggetti operanti nei settori bancario, finanziario, dei mercati, dei valori mobiliari, assicurativo e dei servizi di pagamento. Sentenze definitive di condanna al risarcimento dei danni per responsabilità amministrativo contabile"]
["RIFERIMENTO",null,"DATA PROVVEDIMENTO",null,null,"AUTORITÀ",null,null,null,null,"TIPO PROVVEDIMENTO",null,null,null,null,"NATURA DEL CAPO D'ACCUSA / IMPUTAZIONE",null,"ANNO IN CUI SI SONO SVOLTI I FATTI",null,"ALTRE INFORMAZIONI"]
["1) Procedimento numero…."]
["Testo libero"]
["2) Procedimento numero…."]
["Testo libero"]
["3) Procedimento numero…."]
["Testo libero"]
[]
["d) Sanzioni amministrative e procedimenti di decadenza o cautelari da parte di autorità pubbliche italiane o europee. Svolgimento di incarichi in soggetti operanti nei settori bancario, finanziario, dei mercati e dei valori mobiliari, assicurativo e dei servizi di pagamento cui è stata irrogata una sanzione amministrativa."]
["Nota metodologica: includere a) sanzioni amministrative irrogate all’esponente per violazioni della normativa in materia societaria, bancaria, finanziaria, mobiliare, assicurativa, antiriciclaggio e delle norme in materia di mercati e di strumenti di pagamento; b) provvedimenti di decadenza o cautelari disposti dalle autorità di vigilanza o su istanza delle stesse; provvedimenti di rimozione disposti ai sensi degli articoli 53 - bis , comma 1, lettera e) , 67 -ter , comma 1, lettera e) , 108, comma 3, lettera d -bis ), 114 -quinquies , comma 3, lettera d -bis ), 114 -quaterdecies , comma 3, lettera d -bis ), del testo unico bancario, e degli articoli 7, comma 2 -bis , e 12, comma 5 -ter , del testo unico della finanza; c)svolgimento di incarichi in soggetti operanti nei settori bancario, finanziario, dei mercati e dei valori mobiliari, assicurativo e dei servizi di pagamento cui sia stata irrogata una sanzione amministrativa, ovvero una sanzione ai sensi del decreto legislativo 8 giugno 2001, n. 231"]
["AUTORITÀ",null,"CONTESTAZIONE",null,null,null,null,"STATO PROCEDIMENTO",null,null,null,null,null,"DATA SANZIONE",null,"IMPORTO E DETTAGLI SANZIONE",null,null,"SOGGETTO SANZIONATO"]
[]
["Testo libero"]
[]
["Testo libero"]
[]
["e) Partecipazione all'amministrazione e controllo di imprese con procedure concorsuali concluse o in corso"]
["Nota metodologica: includere lo svolgimento di incarichi in imprese che siano state sottoposte ad amministrazione straordinaria, procedure di risoluzione, fallimento o liquidazione coatta amministrativa, rimozione collettiva dei componenti degli organi di amministrazione e controllo, revoca dell’autorizzazione ai sensi dell’articolo 113 -ter del testo unico bancario, cancellazione ai sensi dell’articolo 112 -bis , comma 4, lettera b) , del testo unico bancario o a procedure equiparate"]
["NOME SOCIETÀ",null,"SETTORE DI ATTIVITÀ",null,null,null,null,"PROCEDIMENTO IN CORSO",null,null,null,null,null,null,"DATA AVVIO/CONCLUSIONE PROCEDURA",null,null,"RUOLO SVOLTO"]
[]
["Testo libero"]
[]
["Testo libero"]
[]
["f) Sospensione o radiazione da albi e elenchi, misure di revoca per giusta causa di incarichi assunti in organi di direzione e controllo "]
["Nota metodologica: includere sospensione o radiazione da albi, cancellazione (adottata a titolo di provvedimento disciplinare) da elenchi e ordini professionali irrogate dalle autorità competenti sugli ordini professionali medesimi; misure di revoca per giusta causa dagli incarichi assunti in organi di direzione, amministrazione e controllo; misure analoghe adottate da organismi incaricati dalla legge della gestione di albi ed elenchi"]
["AUTORITÀ",null,"TIPO PROVVEDIMENTO",null,null,null,null,null,null,null,"DATA","CONTESTAZIONE",null,null,null,null,null,"ALTRE INFORMAZIONI"]
[]
[]
[]
[]
["g) Valutazioni negative da autorità pubbliche italiane o europee"]
["Nota metodologica: includere valutazione negativa da parte di un’autorità amministrativa in merito all’idoneità dell’esponente nell’ambito di procedimenti di autorizzazione previsti dalle disposizioni in materia societaria, bancaria, finanziaria, mobiliare, assicurativa e dalle norme in materia di mercati e di servizi di pagamento"]
["AUTORITÀ",null,"TIPO PROVVEDIMENTO",null,null,null,null,null,null,null,"ANNO VALUTAZIONE","ESITO VALUTAZIONE"]
[]
[]
[]
[]
["h) Informazioni negative della centrale dei rischi"]
["Nota metodologica: le informazioni negative sull’esponente contenute nella Centrale dei Rischi istituita ai sensi dell’articolo 53 del testo unico bancario; per informazioni negative si intendono quelle, relative all’esponente anche quando non agisce in qualità di consumatore, rilevanti ai fini dell’assolvimento degli obblighi di cui all’articolo 125, comma 3, del medesimo testo unico"]
["TIPO DI INFORMAZIONE NEGATIVA",null,null,null,null,null,null,"IMPORTO",null,null,null,null,"DATA SEGNALAZIONE",null,"SOGGETTO SEGNALANTE"]
[]
[]
[]
[]
["g) Situazioni equivalenti a quelle di cui alle lettere precedenti, con riferimento a fattispecie disciplinate in tutto o in parte da ordinamenti stranieri"]
["RIFERIMENTI A TESTO LIBERO\n(fornire lo stesso tipo di informazioni richieste nelle colonne di cui alle lettere precedenti con riferimento alle equivalenti fattispecie domestiche)"]
[]
[]
[]
[]
[]
[]
[]
[]
["2.   REQUISITI DI PROFESSIONALITA' E CRITERI DI COMPETENZA"]
[]
["2.1) ESPERIENZE PROFESSIONALI rilevanti  (ultimi 20 anni)"]
["compilazione obbligatoria",null,null,null,null,null,null,null,null,null,"compilazione eventuale: informazioni ulteriori sull'attività o l'ente presso cui è stata svolta, da fornire ove il DM richieda una valutazione di equivalenza basata su dimensione, complessità e/o rilevanza dell'attività o dell'organizzazione"]
["da \n(data inizio)","a \n(data fine) (*)","Tipologia di attività \n(selezionare da elenco)",null,null,"Posizione, carica o ruolo (**)",null,"Principali mansioni e responsabilità \n(non necessario per cariche o posizioni tipiche - es. AD, DG, membro CdA, sindaco, etc.)",null,"società / ente \n(denominazione)","fatturato dell'ente \ne altri dati economici rilevanti",null,null,"dati su natura e complessità dell'organizzazione dell'ente (es. dimensione in termini di personale, parti-colare complessità della struttura organizzativa, etc.)",null,null,"dati su rilevanza e continuità dell'attività professionale svolta negli ambiti di cui all'art. 7, c.2. lett. a) del Decreto",null,null,null,"altre informazioni"]
[]
[]
[]
[]
[]
[]
[]
[]
["se necessario, inserire ulteriori righe"]
["(*) per attività attualmente ancora in essere, valorizzare data fine con 31/12/9999"]
["(**) nel caso di sindaco incaricato anche dell'attività di revisione legale dei conti, specificare in tal senso; in mancanza, si intenderà sindaco senza incarico di revisione legale dei conti"]
[]
["2.2) CURRICULUM VITAE"]
[]
["2.2.1) ISCRIZIONE IN ALBI PROFESSIONALI"]
["da \n(data inizio)","a \n(data fine) (*)","albo / registro\n(denominazione)"]
[]
[]
[]
["se necessario, inserire ulteriori righe"]
["(*) per iscrizioni attualmente in essere, valorizzare data fine con 31/12/9999"]
[]
["2.2.2) TITOLI DI STUDIO"]
["da \n(data inizio)","a \n(data fine)","Titolo conseguito\n(selezionare da elenco)",null,null,null,null,null,null,null,"Descrizione",null,null,null,null,null,"Università, ente o organizzazione"]
[]
[]
[]
["se necessario, inserire ulteriori righe"]
[]
["2.2.3) ALTRE ATTIVITÀ FORMATIVE RILEVANTI"]
["da \n(data inizio)","a \n(data fine)","Ambito formativo rilevante\n(selezionare da elenco)",null,null,null,null,null,"Ente o istituto erogante",null,null,null,null,"Denominazione del corso o dell'attività formativa",null,null,null,"Descrizione del corso o attività formativa e delle principali competenze acquisite"]
[]
[]
[]
["se necessario, inserire ulteriori righe"]
[]
["2.3) AMBITI DI COMPETENZA (conoscenza teorica ed esperienza pratica) (*)"]
["Ambito di competenza\n(selezionare da elenco)",null,null,null,null,null,null,"Adeguata (**) conoscenza teorica: giustificare la risposta",null,null,null,null,null,null,null,"Adeguata (**) esperienza pratica: giustificare la risposta"]
[]
[]
[]
[]
[]
[]
[]
[]
["(*) Conformemente all'art. 2 del Decreto, la sezione 2.3. (competenza) si applica solo a:\n- gli esponenti degli intermediari bancari e dei Sistemi di garanzia dei depositanti; \n- i \"responsabili delle principali funzioni aziendali\" delle \"banche di maggiori dimensioni o complessità operativa\";\n- il Presidente, gli esponenti con incarichi esecutivi e i componenti del collegio sindacale, del consiglio di sorveglianza e del comitato per il controllo sulla gestione di \"intermediari finanziari significativi\", di istituti di moneta elettronica, di \"istituti di pagamento rilevanti per la natura specifica dell'attività svolta\".\nInoltre, conformemente all'art. 10, c.4, del Decreto, la sezione 2.3. (competenza) può  ossere omessa dagli esponenti che soddisfino il requisito di professionalità alle condizioni \"rafforzate\" stabilite dall'Allegato al Decreto."]
["(**) L'adeguatezza è da valutare in rapporto ai compiti inerenti alla carica che l'esponente è chiamato a ricoprire nell'intermediario, anche alla luce delle caratteristiche, dimensionali e operative, dell'intermediario stesso."]
[]
["LE TABELLE SOTTOSTANTI, CHE NON VANNO COMPILATE, SONO DI MERO RIEPILOGO DEI REQUISITI DI PROFESSIONALITÀ RICHIESTI DAL DECRETO PER CIASCUNA TIPOLOGIA DI ESPONENTE E INTERMEDIARIO\n(Tabella 1: requisiti minimi di professionalità per l'assunzione della carica; Tabella 2: requisiti \"rafforzati\" di professionalità che consentono di omettere la valutazione della competenza)"]
[]
["Tabella 1\nRequisiti minimi di professionalità previsti dal decreto per l'assunzione della carica"]
["BANCHE (DIVERSE DALLE BCC MINORI) E SISTEMI DI GARANZIA DEI DEPOSITANTI"]
["AMMINISTRATORI",null,null,null,null,null,null,null,null,null,null,null,"SINDACI"]
["Esecutivi che hanno svolto le attività di cui all'art. 7, c. 1",null,null,null,"3 anni di esperienza maturati negli ultimi 20 anni",null,null,null,null,null,"Iscritti nel registro dei revisori legali che abbiano svolto incarichi di revisione legale\n",null,null,null,null,"3 anni (N.B. il parametro temporale si riferisce all'effettivo svolgimento di incarichi di revisione legale, non alla mera anzianità di iscrizione nel registro) "]
["Non esecutivi in possesso dei requisiti ex art. 7, c. 1 o c. 2",null,null,null,"3 anni di esperienza maturati negli ultimi  20 anni",null,null,null,null,null,"Altri sindaci-attività di revisione legale e/o attività di cui all'art. 7 c.1 e/o c.2",null,null,null,null,"3 anni di esperienza maturati negli ultimi 20 anni"]
["Presidente CdA (art. 7, c. 3) ",null,null,null,"5 anni maturati negli ultimi 20 anni",null,null,null,null,null,"Presidente - requisiti di cui all'art. 9 c. 3",null,null,null,null,"5 anni maturati negli ultimi 20 anni"]
["AD e DG che hanno svolto le attività di cui all'art. 7, c. 4",null,null,null,"5 anni maturati negli ultimi 20 anni"]
["BCC MINORI"]
["AMMINISTRATORI",null,null,null,null,null,null,null,null,null,null,null,"SINDACI"]
["Esecutivi e non esecutivi  (art.8); attività di cui all'art. 7",null,null,null,"1 anno maturato negli ultimi 20 anni",null,null,null,null,null,"Iscritti nel registro dei revisori legali che abbiano svolto incarichi di revisione legale\n",null,null,null,null,"3 anni (N.B. il parametro temporale si riferisce all'effettivo svolgimento di incarichi di revisione legale, non alla mera anzianità di iscrizione nel registro) "]
["Presidente CdA (art.8); attività di cui all'art. 7",null,null,null,"3 anni maturati negli ultimi 20 anni",null,null,null,null,null,"Altri sindaci-attività di revisione legale e/o attività di cui all'art. 7 c.1 e/o c.2",null,null,null,null,"3 anni di esperienza maturati negli ultimi 20 anni"]
["AD e DG - (art.8); attività di cui all'art. 7 ",null,null,null,"4 anni maturati negli ultimi 20 anni",null,null,null,null,null,"Presidente - requisiti di cui all'art. 9, c. 3",null,null,null,null,"5 anni maturati negli ultimi 20 anni"]
["Non esecutivi in proporzione inferiore alla metà del numero dei non esecutivi - requisito di cui all'art. 8, c. 2",null,null,null,"1 anno maturato negli ultimi 20 anni"]
[" INTERMEDIARI FINANZIARI, ISTITUTI DI MONETA ELETTRONICA E ISTITUTI DI PAGAMENTO (cfr. art. 2, c. 3 del Decreto)"]
["AMMINISTRATORI",null,null,null,null,null,null,null,null,null,null,null,"SINDACI"]
["Esecutivi e non esecutivi  (art.8); attività di cui all'art. 7",null,null,null,"1 anno maturato negli ultimi 20 anni",null,null,null,null,null,"Iscritti nel registro dei revisori legali che abbiano incarichi di revisione legale su enti di interesse pubblico o su enti sottoposti a regime intermedio ai sensi del d.lgs. n. 39/2010",null,null,null,null,"3 anni (N.B. il parametro temporale si riferisce all'effettivo svolgimento di incarichi di revisione legale, non alla mera anzianità di iscrizione nel registro) "]
["Presidente CdA (art.8); attività di cui all'art. 7",null,null,null,"3 anni maturati negli ultimi 20 anni",null,null,null,null,null,"Altri sindaci-attività di revisione legale e/o attività di cui all'art. 7 c.1 e/o c.2",null,null,null,null,"3 anni di esperienza maturati negli ultimi 20 anni"]
["AD e DG - (art.8); attività di cui all'art. 7 ",null,null,null,"4 anni maturati negli ultimi 20 anni",null,null,null,null,null,"Presidente - requisiti di cui all'art. 9 c. 3",null,null,null,null,"5 anni maturati negli ultimi 20 anni"]
[]
["Tabella 2\nRequisiti di cui all'allegato 1 del Decreto, che consentono di omettere la valutazione del criterio di competenza ai sensi dell'art. 10 comma 4."]
["BANCHE (DIVERSE DALLE BCC MINORI) E SISTEMI DI GARANZIA DEI DEPOSITANTI"]
["AMMINISTRATORI",null,null,null,null,null,null,null,null,null,null,null,"SINDACI"]
["Esecutivi che hanno svolto le attività di cui all'art. 7, c. 1, lett. a)",null,null,null,"5 anni di esperienza maturati negli ultimi 8 anni",null,null,null,null,null,"Iscritti nel registro dei revisori legali che abbiano incarichi di revisione legale su enti di interesse pubblico o su enti sottoposti a regime intermedio ai sensi del d.lgs. n. 39/2010",null,null,null,null,"3 anni"]
["Non esecutivi in possesso dei requisiti ex art. 7, c. 1",null,null,null,"3 anni di esperienza maturati negli ultimi 6 anni",null,null,null,null,null,"Altri sindaci",null,null,null,null,"5 anni di esperienza maturati negli ultimi 8 anni"]
["Altri non esecutivi (requisiti di cui all'art. 7, c. 2); ",null,null,null,"5 anni di esperienza maturati negli ultimi 8 anni",null,null,null,null,null,"Presidente",null,null,null,null,"10 anni maturati negli ultimi 13 anni"]
["Presidente CdA (art. 7, c. 3) ",null,null,null,"10 anni maturati negli ultimi 13 anni"]
["AD e DG che hanno svolto le attività di cui all'art.7, c.1, lett.a)",null,null,null,"10 anni maturati negli ultimi 13 anni"]
["BCC MINORI, INTERMEDIARI FINANZIARI, ISTITUTI DI MONETA ELETTRONICA E ISTITUTI DI PAGAMENTO"]
["AMMINISTRATORI",null,null,null,null,null,null,null,null,null,null,null,"SINDACI"]
["Esecutivi (per le BCC art.8)",null,null,null,"2 anni maturati negli ultimi 5 anni",null,null,null,null,null,"Iscritti nel registro dei revisori legali che abbiano incarichi di revisione legale su enti di interesse pubblico o su enti sottoposti a regime intermedio ai sensi del d.lgs. n. 39/2010",null,null,null,null,"3 anni"]
["Non esecutivi in possesso dei requisiti ex art. 7, c. 1",null,null,null,"1 anno maturato negli ultimi 4 anni",null,null,null,null,null,"Altri sindaci",null,null,null,null,"5 anni di esperienza maturati negli ultimi 8 anni"]
["Altri non esecutivi in possesso dei requisiti di cui all'art. 7 c. 2 ",null,null,null,"2 anni maturati negli ultimi 5 anni",null,null,null,null,null,"Presidente",null,null,null,null,"10 anni maturati negli ultimi 13 anni"]
["Presidente CdA  (per le BCC art. 8)",null,null,null,"4 anni maturati negli ultimi 7 anni"]
["AD e DG che hanno svolto le attività di cui all'art.7, c.1, lett.a)",null,null,null,"5 anni maturati negli ultimi 8 anni"]
[]
[]
["3 - INDIPENDENZA"]
[]
["3.1)  REQUISITI DEGLI AMMINISTRATORI INDIPENDENTI (Art. 13 del Decreto n. 169/2020)"]
["N.B.: Qualora (i) non sia richiesta, ai sensi di disposizioni di legge, regolamentari o statutarie, la presenza nel consiglio di \"amministratori indipendenti\" o (ii) l'esponente in esame non sia nominato come \"amministratore indipendente\"; (iii) le fattispecie elencate non vengano in rilievo in considerazione della peculiare natura dell'ente, valorizzare i campi con \"NA\""]
["L'esponente:"]
["a) è coniuge non legalmente separato, persona legata in unione civile o convivenza di fatto, parente o affine entro il quarto grado: 1) del presidente del consiglio di amministrazione, di gestione o di sorveglianza e degli esponenti con incarichi esecutivi dell'intermediario; 2) dei responsabili delle principali funzioni aziendali dell'intermediario; 3) di persone che si trovano nelle condizioni di cui alle lettere da b) a i) dell'art. 13 del Decreto 169/2020",null,null,null,null,null,null,null,null,null,null,null,null,null,null,null,null,null,null,"Inserire risposta"]
["In caso di risposta affermativa, fornire dettagli:\n\n "]
["b) è un partecipante nell'intermediario\nN.B. Per \"partecipante\" si intende un soggetto tenuto a chiedere le autorizzazioni previste ai sensi del Titolo II, Capo III, del TUB e relative disposizioni attuative.",null,null,null,null,null,null,null,null,null,null,null,null,null,null,null,null,null,null,"Inserire risposta"]
["c) ricopre o ha ricoperto negli ultimi due anni presso un partecipante nell'intermediario o società controllate dall'intermediario incarichi di presidente del consiglio di amministrazione, di gestione o di sorveglianza o di esponente con incarichi esecutivi, oppure ha ricoperto, per più di nove anni negli ultimi dodici, incarichi di componente del consiglio di amministrazione, di sorveglianza o di gestione nonché di direzione presso un partecipante nella banca o società da questa controllate",null,null,null,null,null,null,null,null,null,null,null,null,null,null,null,null,null,null,"Inserire risposta"]
["In caso di risposta affermativa, fornire dettagli:\n\n "]
["d) ha ricoperto negli ultimi due anni l’incarico di esponente con incarichi esecutivi nell'intermediario",null,null,null,null,null,null,null,null,null,null,null,null,null,null,null,null,null,null,"Inserire risposta"]
["e) ricopre l’incarico di consigliere indipendente in un altro intermediario del medesimo gruppo, salvo il caso di intermediari tra cui intercorrono rapporti di controllo, diretto o indiretto, totalitario",null,null,null,null,null,null,null,null,null,null,null,null,null,null,null,null,null,null,"Inserire risposta"]
["f) ha ricoperto, per più di nove anni negli ultimi dodici, incarichi di componente del consiglio di amministrazione, di sorveglianza o di gestione nonché di direzione presso l'intermediario",null,null,null,null,null,null,null,null,null,null,null,null,null,null,null,null,null,null,"Inserire risposta"]
["g) è esponente con incarichi esecutivi in una società in cui un esponente con incarichi esecutivi dell'intermediario ricopre l’incarico di consigliere di amministrazione o di gestione",null,null,null,null,null,null,null,null,null,null,null,null,null,null,null,null,null,null,"Inserire risposta"]
["h) intrattiene, direttamente, indirettamente, o ha intrattenuto nei due anni precedenti all’assunzione dell’incarico, rapporti - di cui alle sottostanti lettere h.1), h.2) e h.3) - anche non continuativi, con (i) l'intermediario, il suo presidente o i  suoi esponenti con incarichi esecutivi, (ii) le società controllate dall'intermediario o i relativi presidenti o esponenti con incarichi esecutivi o (iii) partecipanti nell'intermediario o i relativi presidenti o esponenti con incarichi esecutivi.",null,null,null,null,null,null,null,null,null,null,null,null,null,null,null,null,null,null,"Inserire risposta"]
["h.1) rapporti di lavoro autonomo o subordinato",null,null,null,null,null,null,null,null,null,null,null,null,null,null,null,null,null,null,"Inserire risposta"]
["In caso di risposta affermativa, descrivere il rapporto di lavoro e fornire le motivazioni per cui si ritiene che non comprometta l'indipendenza: \n"]
["h.2) rapporti di natura finanziaria",null,null,null,null,null,null,null,null,null,null,null,null,null,null,null,null,null,null,"Inserire risposta"]
["In caso di risposta affermativa, compilare l'allegato \"3A - Esposizioni Finanziarie\" e fornire, di seguito, le motivazioni per cui si ritiene che questa situazione non comprometta l'indipendenza: "]
["h.3) rapporti di natura patrimoniale o professionale\n\nN.B. sono inclusi anche i rapporti di natura commerciale e i procedimenti legali, contro l'ente vigilato o contro la controllante e le sue controllate, in cui l'esponente è parte ",null,null,null,null,null,null,null,null,null,null,null,null,null,null,null,null,null,null,"Inserire risposta"]
["In caso di risposta affermativa relativa ai rapporti di natura patrimoniale, professionale o commerciale, indicare: 1) se del del caso, il nome della società tramite cui si intrattiene il rapporto; 2) l'ente e/o l'esponente verso cui si intrattiene il rapporto; 3) il tipo di rapporto; 4) il relativo valore economico e l'incidenza sul reddito complessivo (o sulle risorse finanziarie, in caso di interesse patrimoniale) dell'esponente :\n \nIn caso di risposta affermativa relativa ai procedimenti legali, fornire informazioni sul contenuto del procedimento, la sua fase e l'ente interessato:\n\nFornire le motivazioni per cui si ritiene che queste situazioni non compromettano l'indipendenza dell'esponente:\n\n"]
["i) ricopre o ha ricoperto negli ultimi due anni uno o più dei seguenti incarichi:"]
["i.1) membro del parlamento nazionale ed europeo, del Governo o della Commissione europea;",null,null,null,null,null,null,null,null,null,null,null,null,null,null,null,null,null,null,"Inserire risposta"]
["i.2) assessore o consigliere regionale, provinciale o comunale, presidente di giunta regionale, presidente di provincia, sindaco, residente o componente di consiglio circoscrizionale, presidente o componente del consiglio di amministrazione di consorzi fra enti locali, presidente o componente dei consigli o delle giunte di unioni di comuni, consigliere di amministrazione o presidente di aziende speciali o istituzioni di cui all’articolo 114 del decreto legislativo 18 agosto 2000, n. 267, sindaco o consigliere di Città metropolitane, presidente o componente degli organi di comunità montane o isolane",null,null,null,null,null,null,null,null,null,null,null,null,null,null,null,null,null,null,"Inserire risposta"]
["In caso di risposta affermativa, fornire dettagli e le motivazioni per cui si ritiene che questa situazione non comprometta l'indipendenza:  "]
["l) è consigliere esecutivo",null,null,null,null,null,null,null,null,null,null,null,null,null,null,null,null,null,null,"Inserire risposta"]
["N.B. Per le BCC si applica l'art. 13 co 2, secondo cui le banche di credito cooperativo che si dotano dello schema statutario tipo approvato dalla capogruppo alla quale risultano affiliate e accertato dalla Banca d’Italia possono applicare, in luogo dei requisiti indicati dal presente articolo, i requisiti di indipendenza previsti dallo statuto stesso."]
[]
["3.2) REQUISITI DEI COMPONENTI DEL COLLEGIO SINDACALE (Art. 14 del Decreto n. 169/2020)"]
["N.B. Per esponenti diversi dai componenti del collegio sindacale valorizzare i campi con \"NA\""]
["L'esponente:"]
["a) si trova in una delle situazioni indicate nell'articolo 13, comma 1, lettere b), g) e h) del Decreto 169/2020, ossia:"]
["a.1) è un partecipante nell'intermediario",null,null,null,null,null,null,null,null,null,null,null,null,null,null,null,null,null,null,"Inserire risposta"]
["a.2) è esponente con incarichi esecutivi in una società in cui un esponente con incarichi esecutivi dell'intermediario ricopre l’incarico di consigliere di amministrazione o di gestione;",null,null,null,null,null,null,null,null,null,null,null,null,null,null,null,null,null,null,"Inserire risposta"]
["In caso di risposta affermativa, fornire dettagli: \n  "]
["a.3) intrattiene, direttamente, indirettamente, o ha intrattenuto nei due anni precedenti all’assunzione dell’incarico, rapporti - di cui alle sottostanti lettere a.3.1), a.3.2) e a.3.3) - anche non continuativi, con (i) l'intermediario, il suo presidente o i  suoi esponenti con incarichi esecutivi, (ii) le società controllate dall'intermediario o i relativi presidenti o esponenti con incarichi esecutivi o (iii) partecipanti nell'intermediario o i relativi presidenti o esponenti con incarichi esecutivi."]
["a.3.1) rapporti di lavoro autonomo o subordinato",null,null,null,null,null,null,null,null,null,null,null,null,null,null,null,null,null,null,"Inserire risposta"]
[" In caso di risposta affermativa, descrivere il rapporto di lavoro e fornire le motivazioni per cui si ritiene che questa situazione non comprometta l'indipendenza:  \n\n"]
["a.3.2) rapporti di natura finanziaria",null,null,null,null,null,null,null,null,null,null,null,null,null,null,null,null,null,null,"Inserire risposta"]
["In caso di risposta affermativa, compilare l'allegato \"3A - Esposizioni Finanziarie\" e fornire di seguito le motivazioni per cui si ritiene che questa situazione non comprometta l'indipendenza:\n\n "]
["a.3.3) rapporti di natura patrimoniale o professionale \n\nN.B. sono inclusi anche i rapporti di natura commerciale e i procedimenti legali, contro l'ente vigilato o contro la controllante e le sue controllate, in cui l'esponente è parte  ",null,null,null,null,null,null,null,null,null,null,null,null,null,null,null,null,null,null,"Inserire risposta"]
["In caso di risposta affermativa relativa ai rapporti di natura patrimoniale, professionale o commerciale, indicare: 1) se del del caso, il nome della società tramite cui si intrattiene il rapporto; 2) l'ente e/o l'esponente verso cui si intrattiene il rapporto; 3) il tipo di rapporto; 4) il relativo valore economico e l'incidenza sul reddito complessivo (o sulle risorse finanziarie, in caso di interesse patrimoniale) dell'esponente :\n \nIn caso di risposta affermativa relativa ai procedimenti legali, fornire informazioni sul contenuto del procedimento, la sua fase e l'ente interessato:\n\nFornire le motivazioni per cui si ritiene che queste situazioni non compromettano l'indipendenza dell'esponente:"]
["b) è coniuge non legalmente separato, persona legata in unione civile o convivenza di fatto, parente o affine entro il quarto grado: "]
["b.1) dei responsabili delle principali funzioni aziendali dell'intermediario; ",null,null,null,null,null,null,null,null,null,null,null,null,null,null,null,null,null,null,"Inserire risposta"]
["b.2) di persone che si trovano nelle situazioni indicate nell’articolo 13, comma 1, lettere b) , g) e h) , o nella lettera c) del presente comma;",null,null,null,null,null,null,null,null,null,null,null,null,null,null,null,null,null,null,"Inserire risposta"]
["In caso di risposta affermativa, fornire dettagli: \n\n"]
["c) ricopre o ha ricoperto negli ultimi cinque anni incarichi di componente del consiglio di amministrazione o di gestione nonché di direzione presso un partecipante nell'intermediario, l'intermediario o società controllate dall'intermediario.",null,null,null,null,null,null,null,null,null,null,null,null,null,null,null,null,null,null,"Inserire risposta"]
["In caso di risposta affermativa, fornire dettagli: "]
["N.B. Per le BCC si applica l'art. 13, comma secondo, cui le banche di credito cooperativo che si dotano dello schema statutario tipo approvato dalla capogruppo alla quale risultano affiliate e accertato dalla Banca d’Italia possono applicare, in luogo dei requisiti indicati dal presente articolo, i requisiti di indipendenza previsti dallo statuto stesso.\n\nE' fatta salva la possibilita' per un componente del collegio sindacale di svolgere l'incarico di sindaco, o di consigliere di sorveglianza, contemporaneamente in una o piu' societa' dello stesso gruppo bancario. "]
[]
["3.3)  CRITERI DI INDIPENDENZA DI GIUDIZIO (Art. 15 del Decreto n. 169/2020)"]
["NB: gli amministratori indipendenti che hanno compilato la sezione 3.1. possono omettere la compilazione di questa sezione; i sindaci possono omettere la compilazione della lett. d) della presente sezione se hanno fornito le corrispondenti informazioni nella sez.3.2). Nel caso di intermediari a cui non si applicano i criteri stabiliti dall'art. 15 (Indipendenza di giudizio), valorizzare il presente campo con \"NA\" "]
["L'esponente:"]
["a) è coniuge non legalmente separato, persona legata in unione civile o convivenza di fatto, parente o affine entro il quarto grado: 1) del presidente del consiglio di amministrazione, di gestione o di sorveglianza e degli esponenti con incarichi esecutivi dell'intermediario; 2) dei responsabili delle principali funzioni aziendali dell'intermediario; 3) di persone che si trovano nelle condizioni di cui alle lettere da b) a i) dell'art. 13 del Decreto 169/2000.",null,null,null,null,null,null,null,null,null,null,null,null,null,null,null,null,null,null,"Inserire risposta"]
["In caso di risposta affermativa, fornire dettagli e le motivazioni per cui si ritiene che questa situazione non infici l'indipendenza di giudizio:\n\n "]
["b) è un partecipante nell'intermediario",null,null,null,null,null,null,null,null,null,null,null,null,null,null,null,null,null,null,"Inserire risposta"]
["In caso di risposta affermativa, fornire dettagli e le motivazioni per cui si ritiene che questa situazione non infici l'indipendenza di giudizio:\n\n"]
["c) ricopre o ha ricoperto negli ultimi due anni presso un partecipante nell'intermediario o società controllate dall'intermediario incarichi di presidente del consiglio di amministrazione, di gestione o di sorveglianza o di esponente con incarichi esecutivi, oppure ha ricoperto, per più di nove anni negli ultimi dodici, incarichi di componente del consiglio di amministrazione, di sorveglianza o di gestione nonché di direzione presso un partecipante nell'intermediario o società controllate dall'intermediario.",null,null,null,null,null,null,null,null,null,null,null,null,null,null,null,null,null,null,"Inserire risposta"]
["In caso di risposta affermativa, fornire dettagli le motivazioni per cui si ritiene che questa situazione non infici l'indipendenza di giudizio:"]
["d) intrattiene, direttamente, indirettamente, o ha intrattenuto nei due anni precedenti all’assunzione dell’incarico, rapporti - di cui alle sottostanti lettere d.1), d.2 e d.3) - anche non continuativi, con (i) l'intermediario, il suo presidente o i  suoi esponenti con incarichi esecutivi, (ii) le società controllate dall'intermediario o i relativi presidenti o esponenti con incarichi esecutivi o (iii) partecipanti nell'intermediario o i relativi presidenti o esponenti con incarichi esecutivi."]
["d.1) rapporti di lavoro autonomo o subordinato",null,null,null,null,null,null,null,null,null,null,null,null,null,null,null,null,null,null,"Inserire risposta"]
["In caso di risposta affermativa, descrivere il rapporto di lavoro e fornire le motivazioni per cui si ritiene che questa situazione non infici l'indipendenza di giudizio: \n\n"]
["d.2) rapporti di natura finanziaria",null,null,null,null,null,null,null,null,null,null,null,null,null,null,null,null,null,null,"Inserire risposta"]
["In caso di risposta affermativa, compilare l'allegato \"3A - Esposizioni Finanziarie\" e fornire di seguito le motivazioni per cui si ritiene che questa situazione non comprometta l'indipendenza di giudizio: \n\n"]
["d.3) rapporti di natura patrimoniale o professionale\n\n(N.B. sono inclusi anche i rapporti di natura commerciale e i procedimenti legali, contro l'ente vigilato o contro la controllante e le sue controllate, in cui l'esponente è parte) ",null,null,null,null,null,null,null,null,null,null,null,null,null,null,null,null,null,null,"Inserire risposta"]
["In caso di risposta affermativa relativa ai rapporti di natura patrimoniale, professionale o commerciale, indicare: 1) se del del caso, il nome della società tramite cui si intrattiene il rapporto; 2) l'ente e/o l'esponente verso cui si intrattiene il rapporto; 3) il tipo di rapporto; 4) il relativo valore economico e l'incidenza sul reddito complessivo (o sulle risorse finanziarie, in caso di interesse patrimoniale) dell'esponente :\n \nIn caso di risposta affermativa relativa ai procedimenti legali, fornire informazioni sul contenuto del procedimento, la sua fase e l'ente interessato:\n\nFornire le motivazioni per cui si ritiene che queste situazioni non inficino l'indipendenza di giudizio:"]
["e) ricopre o ha ricoperto negli ultimi due anni uno o più dei seguenti incarichi:"]
["e.1) membro del parlamento nazionale ed europeo, del Governo o della Commissione europea;",null,null,null,null,null,null,null,null,null,null,null,null,null,null,null,null,null,null,"Inserire risposta"]
["e.2) assessore o consigliere regionale, provinciale o comunale, presidente di giunta regionale, presidente di provincia, sindaco, presidente o componente di consiglio circoscrizionale, presidente o componente del consiglio di amministrazione di consorzi fra enti locali, presidente o componente dei consigli o delle giunte di unioni di comuni, consigliere di amministrazione o presidente di aziende speciali o istituzioni di cui all’articolo 114 del decreto legislativo 18 agosto 2000, n. 267, sindaco o consigliere di Città metropolitane, presidente o componente degli organi di comunità montane o isolane",null,null,null,null,null,null,null,null,null,null,null,null,null,null,null,null,null,null,"Inserire risposta"]
["In caso di risposta affermativa, fornire dettagli e le motivazioni per cui si ritiene che questa situazione non infici l'indipendenza di giudizio:\n\n "]
["N.B. Ai sensi dell'art. 2 del Decreto 169/2020, l’articolo 15 si applica, oltre che agli esponenti di banche e società capogruppo di gruppi bancari, anche a tutti gli esponenti degli \"intermediari finanziari significativi\", degli istituti di moneta elettronica e degli \"istituti di pagamento rilevanti per la natura specifica dell’attività svolta\" (cfr. DM, art. 1 (Definizioni), per la definizione di \"intermediari finanziari significativi\" e \"istituti di pagamento rilevanti per la natura specifica dell'attività svolta\")."]
[]
[]
["ALLEGATO 3A - RAPPORTI DI NATURA FINANZIARIA"]
["ABI","Banca","Data compilazione","Totale Attivo ","Fondi Propri","Istruzioni per la compilazione:\nImporti in migliaia di euro. \nNelle colonne (A) e (B) va riportato solo il nome / cognome dell'esponente (ripetendolo se necessario per ogni linea di credito descritta).  In presenza di esposizioni in capo a soggetti rilevanti ai sensi del D.M. 169/2020: nella colonna (E) vanno indicati i relativi soggetti intestatatari. Questi sono: il coniuge, il soggetto legato in unione civile, il convivente more uxorio, il parente o affine entro il 4° grado dell'esponente. \nRilevano altresì le esposizioni indirette, i.e.: \n  (a) quelle nei confronti di società o imprese anche costituite in forma non societaria controllate dall'esponente o da suoi parenti o affini entro il 4° grado; \n  (b) quelle nei confronti di società partecipate per almeno il 10% dall'esponente, ovvero \n  (c) quelle verso società nelle quali l'esponente stesso ricopre una carica sociale (ad es.: componente del CdA o del CS, CEO, AD, ecc.) \nPer ciascun esponente e i soggetti ad esso \"connessi\", compilare una riga per ogni esposizione / linea di credito. "]
["compilare","compilare",null,"compilare","compilare","- nella colonna “(H) Tipologia linea di credito” vanno anche indicati i crediti di firma in favore dell’esponente/altro soggetto “connesso” nonché le garanzie rilasciate dall’esponente/altro soggetto “connesso” (in quest’ultimo caso specificare anche chi è il soggetto beneficiario della garanzia) in relazione a un’esposizione finanziaria di terzi. \n- nella colonna “(L) Garanzie”, vanno indicate le eventuali garanzie a copertura delle esposizioni di cui è titolare l’esponente o altro soggetto “connesso”; va inoltre precisato se garante è il debitore stesso ovvero un soggetto terzo, specificandone in tal caso l’identità e l’eventuale rapporto di connessione con l’esponente.",null,null,null,null,null,null,null,null,null,null,null,"INCIDENZA PERCENTUALE DEL VALORE DELL'ESPOSIZIONE"]
["(A)\nNOME","(B)\nCOGNOME","(C)\nN esposizione / linea di credito","(D)\nTipo esposizione \n(Diretta / Indiretta)","(E)\nNome Cognome / Denominazione cliente\ne tipo di legame (es. \"figlio\", \"coniuge\", ecc.)\n(solo se non diretta)","(F)\nEsposizione concessa a condizioni di mercato per clienti di pari standing","(G)\nSe diversa da condizioni di mercato, motivare scostamento","(H)\nTipologia linea di credito (es. mutuo, fido…)","(I)\nAmmontare deliberato originario","(J)\nAmmontare accordato attuale (fido) / residuo (mutuo)","(K)\nAmmontare utilizzato","(L)\nGaranzie","(M)\nSe si, dettagliare","(N)\nStatus","(O)\nSe non in bonis ordinario, fornire dettagli","(P)\nEventuali misure di concessione (cd. Forbearance)","(Q)\nSe si, descrivere misura","(R) Sul patrimonio del debitore (esponente o soggetto collegato, se disponibile)","(S) Su accordato totale dell'intermediario nei confronti del titolare dell'esposizione","(T) Su utilizzato  totale\ndell'intermediario nei confronti del titolare dell'esposizione","(U) Su accordato totale \ndi Sistema nei confronti del titolare dell'esposizione","(V)Su utilizzato totale \ndi Sistema nei confronti del titolare dell'esposizione"]
[null,null,1,null,{"$f":"IF($D304=\"Diretta\",\"N/A\",\"Compilare\")","v":"Compilare"},null,{"$f":"IF($F304=\"SI\",\"N/A\",\"Compilare\")","v":"Compilare"},null,null,null,null,null,{"$f":"IF($L304=\"NO\",\"N/A\",\"Compilare\")","v":"Compilare"},null,{"$f":"IF($N304=\"Bonis ordinario\",\"N/A\",\"Compilare\")","v":"Compilare"},null,{"$f":"IF($P304=\"NO\",\"N/A\",\"Compilare\")","v":"Compilare"}]
[null,null,2,null,"Compilare",null,"Compilare",null,null,null,null,null,"Compilare",null,"Compilare",null,"Compilare"]
[null,null,3,null,"Compilare",null,{"$f":"IF($F306=\"SI\",\"N/A\",\"Compilare\")","v":"Compilare"},null,null,null,null,null,"Compilare",null,{"$f":"IF($N306=\"Bonis ordinario\",\"N/A\",\"Compilare\")","v":"Compilare"},null,{"$f":"IF($P306=\"NO\",\"N/A\",\"Compilare\")","v":"Compilare"}]
[null,null,4,null,"Compilare",null,"Compilare",null,null,null,null,null,"Compilare",null,"Compilare",null,"Compilare"]
[null,null,5,null,"Compilare",null,"Compilare",null,null,null,null,null,"Compilare",null,"Compilare",null,"Compilare"]
[null,null,6,null,"Compilare",null,"Compilare",null,null,null,null,null,"Compilare",null,"Compilare",null,"Compilare"]
[null,null,7,null,"Compilare",null,"Compilare",null,null,null,null,null,"Compilare",null,"Compilare",null,"Compilare"]
[null,null,8,null,"Compilare",null,"Compilare",null,null,null,null,null,"Compilare",null,"Compilare",null,"Compilare"]
[null,null,9,null,"Compilare",null,"Compilare",null,null,null,null,null,"Compilare",null,"Compilare",null,"Compilare"]
[null,null,10,null,"Compilare",null,"Compilare",null,null,null,null,null,"Compilare",null,"Compilare",null,"Compilare"]
[null,null,11,null,"Compilare",null,"Compilare",null,null,null,null,null,"Compilare",null,"Compilare",null,"Compilare"]
[null,null,12,null,"Compilare",null,"Compilare",null,null,null,null,null,"Compilare",null,"Compilare",null,"Compilare"]
[null,null,13,null,"Compilare",null,"Compilare",null,null,null,null,null,"Compilare",null,"Compilare",null,"Compilare"]
[null,null,14,null,"Compilare",null,"Compilare",null,null,null,null,null,"Compilare",null,"Compilare",null,"Compilare"]
[null,null,15,null,"Compilare",null,"Compilare",null,null,null,null,null,"Compilare",null,"Compilare",null,"Compilare"]
[null,null,16,null,"Compilare",null,"Compilare",null,null,null,null,null,"Compilare",null,"Compilare",null,"Compilare"]
[null,null,17,null,"Compilare",null,"Compilare",null,null,null,null,null,"Compilare",null,"Compilare",null,"Compilare"]
[null,null,18,null,"Compilare",null,"Compilare",null,null,null,null,null,"Compilare",null,"Compilare",null,"Compilare"]
[null,null,19,null,"Compilare",null,"Compilare",null,null,null,null,null,"Compilare",null,"Compilare",null,"Compilare"]
[null,null,20,null,"Compilare",null,"Compilare",null,null,null,null,null,"Compilare",null,"Compilare",null,"Compilare"]
[null,null,21,null,"Compilare",null,"Compilare",null,null,null,null,null,"Compilare",null,"Compilare",null,"Compilare"]
[null,null,22,null,"Compilare",null,"Compilare",null,null,null,null,null,"Compilare",null,"Compilare",null,"Compilare"]
[null,null,23,null,"Compilare",null,"Compilare",null,null,null,null,null,"Compilare",null,"Compilare",null,"Compilare"]
[null,null,24,null,"Compilare",null,"Compilare",null,null,null,null,null,"Compilare",null,"Compilare",null,"Compilare"]
[null,null,25,null,"Compilare",null,"Compilare",null,null,null,null,null,"Compilare",null,"Compilare",null,"Compilare"]
[null,null,26,null,"Compilare",null,"Compilare",null,null,null,null,null,"Compilare",null,"Compilare",null,"Compilare"]
[null,null,27,null,"Compilare",null,"Compilare",null,null,null,null,null,"Compilare",null,"Compilare",null,"Compilare"]
[null,null,28,null,"Compilare",null,"Compilare",null,null,null,null,null,"Compilare",null,"Compilare",null,"Compilare"]
[null,null,29,null,"Compilare",null,"Compilare",null,null,null,null,null,"Compilare",null,"Compilare",null,"Compilare"]
[null,null,30,null,"Compilare",null,"Compilare",null,null,null,null,null,"Compilare",null,"Compilare",null,"Compilare"]
[null,null,31,null,"Compilare",null,"Compilare",null,null,null,null,null,"Compilare",null,"Compilare",null,"Compilare"]
[null,null,32,null,"Compilare",null,"Compilare",null,null,null,null,null,"Compilare",null,"Compilare",null,"Compilare"]
[null,null,33,null,{"$f":"IF($D336=\"Diretta\",\"N/A\",\"Compilare\")","v":"Compilare"},null,"Compilare",null,null,null,null,null,{"$f":"IF($L336=\"NO\",\"N/A\",\"Compilare\")","v":"Compilare"},null,"Compilare",null,"Compilare"]
[null,null,34,null,"Compilare",null,"Compilare",null,null,null,null,null,"Compilare",null,"Compilare",null,"Compilare"]
[null,null,35,null,"Compilare",null,"Compilare",null,null,null,null,null,"Compilare",null,"Compilare",null,"Compilare"]
[null,null,36,null,"Compilare",null,"Compilare",null,null,null,null,null,"Compilare",null,"Compilare",null,"Compilare"]
[null,null,37,null,"Compilare",null,"Compilare",null,null,null,null,null,"Compilare",null,"Compilare",null,"Compilare"]
[null,null,38,null,"Compilare",null,"Compilare",null,null,null,null,null,"Compilare",null,"Compilare",null,"Compilare"]
[null,null,39,null,"Compilare",null,"Compilare",null,null,null,null,null,"Compilare",null,"Compilare",null,"Compilare"]
[null,null,40,null,"Compilare",null,"Compilare",null,null,null,null,null,"Compilare",null,"Compilare",null,"Compilare"]
[null,null,41,null,"Compilare",null,"Compilare",null,null,null,null,null,"Compilare",null,"Compilare",null,"Compilare"]
[null,null,42,null,"Compilare",null,"Compilare",null,null,null,null,null,"Compilare",null,"Compilare",null,"Compilare"]
[null,null,43,null,"Compilare",null,"Compilare",null,null,null,null,null,"Compilare",null,"Compilare",null,"Compilare"]
[null,null,44,null,"Compilare",null,"Compilare",null,null,null,null,null,"Compilare",null,"Compilare",null,"Compilare"]
[null,null,45,null,"Compilare",null,"Compilare",null,null,null,null,null,"Compilare",null,"Compilare",null,"Compilare"]
[null,null,46,null,"Compilare",null,"Compilare",null,null,null,null,null,"Compilare",null,"Compilare",null,"Compilare"]
[null,null,47,null,"Compilare",null,"Compilare",null,null,null,null,null,"Compilare",null,"Compilare",null,"Compilare"]
[null,null,48,null,"Compilare",null,"Compilare",null,null,null,null,null,"Compilare",null,"Compilare",null,"Compilare"]
[null,null,49,null,"Compilare",null,"Compilare",null,null,null,null,null,"Compilare",null,"Compilare",null,"Compilare"]
[null,null,50,null,"Compilare",null,"Compilare",null,null,null,null,null,"Compilare",null,"Compilare",null,"Compilare"]
[]
["4 - DISPONIBILITA' DI TEMPO - Time Committment"]
[]
["In relazione alla carica da assumere, l'esponente dichiara:"]
[" - di essere a conoscenza della valutazione effettuata dall'ente vigilato  in merito al tempo richiesto per la carica da assumere con delibera /regolamento / decisione  del "]
[" - di essere a conoscenza che il tempo richiesto dall'ente vigilato per la carica da assumere è stato quantificato in un minimo [1] di",null,null,null,null,null,null,null,null,null,null,null,null,null,null,null,null,"giorni "]
[" - di possedere sufficiente tempo da dedicare allo svolgimento dell'incarico anche in relazione alle cariche già assunte, ai propri impegni professionali o di lavoro e alle necessità espresse dall'ente vigilato"]
[" - di impegnarsi a dedicare all'incarico assunto presso l'ente vigilato non meno di n. ",null,null,null,null,null,null,null,"a+b+c+d+e",null,null,null,"giorni stimati sulla base di un numero medio di riunioni"]
[null,null,null,null,null,null,"pari a n. ",null,"a",null,null,null,"per il CdA (organo supervisione strategica)"]
[null,null,null,null,null,null,"a n. ",null,"b",null,null,null,"per l'Organo di controllo, "]
[null,null,null,null,null,null,"a n. ",null,"c",null,null,null,"per ciascun comitato endoconsiliare"]
[null,null,null,null,null,null,"a n. ",null,"d",null,null,null,"per  incontri extraconsiliari"]
[null,null,null,null,null,null,"a n. ",null,"e",null,null,null,"per formazione/aggiornamento e preparazione riunioni"]
[" - di ricoprire gli incarichi (4.1) e di svolgere le attività professionali / lavorative (4.2) di seguito elencate:"]
[]
["4.1) INCARICHI DI AMMINISTRAZIONE, DIREZIONE E CONTROLLO "]
["NUMERO ORDINE","DENOMINAZIONE DELL'ENTE / INTERMEDIARIO / SOCIETA'"," PAESE DELLA SEDE LEGALE "," ATTIVITA' SVOLTA ",null,null,"DIMENSIONE [2]",null,"FUNZIONE ALL'INTERNO DELL'ENTE / INTERMEDIARIO / SOCIETA' / ALTRE ATTIVITA' [3]",null,"INCARICO ESECUTIVO (si/no) \n[4]","CONTEGGIO PRIVILEGIATO (Art. 91.4 CRD IV) [5] O DA NON CONTARE [6]\n(si/no)",null,"RESPONSABILITA' AGGIUNTIVE \n(ad es.appartenenza a comitati, compiti assegnati alla carica, ecc.)",null,"IMPEGNO DI TEMPO NELL'ANNO (FTE) \n[7]  ",null,"DURATA DELL'INCARICO \n(da DD/MM/AAAA a DD/MM/AAAA) ",null,"NUMERO MEDIO DI RIUNIONI PER ANNO \n[8]","ANNOTAZIONI \n[9]"]
["1 \n(ente vigilato nel quale è ricoperta la carica in esame)"]
[2]
[3]
[4]
[5]
[6]
[7]
[8]
[9]
[10]
[]
[null,null,null,null,null,null,null,null,null,null,null,null,null,null,null,null,null,"Giorni totali sez. (4.1)"]
[]
[]
["Note di ausilio alla compilazione della sezione (se necessario, aggiungere altre righe):"]
[]
["[1] L'indicazione deve essere coerente con quanto previsto nella relazione sulla composizione quali-quantitativa ottimale definita dall'organo di supervisione strategica (Consiglio di amministrazione) dell'ente vigilato. Il numero di giorni da considerare come parametro massimo, comprensivo dell'impegno richiesto dall'ente vigilato sommato all'impegno assorbito da altri incarichi e al tempo dedicato all'attività lavorativa/professionale è pari a 260 FTE (Full Time Equivalent) annui."]
["[2] In migliaia di euro. Ad es. Attivo totale dell'ultimo esercizio per banche e intermediari finanziari; fatturato totale e presenza internazionale per le altre tipologie di società.Può essere utilizzata anche la classificazione di cui alla raccomandazione dalla Commissione europea 2003/361/CE recepita dal Decreto Ministeriale 18 aprile 2005 \"Adeguamento alla disciplina comunitaria dei criteri di individuazione di piccole e medie imprese\",di seguito riportata:\n- Micro Imprese: Fatturato ≤ € 2 mln; Attivo ≤ € 2 mln; dipendenti ≤ € 10:\n- Piccole imprese: Fatturato ≤ € 10 milioni; Attivo ≤ € 10 milioni; Dipendenti ≤ 50;\n- Medie imprese: Fatturato ≤ € 50 milioni; Attivo ≤ € 43 milioni; Dipendenti ≤ 250;\n- Grandi imprese: Fatturato > € 50 milioni; Attivo > € 43 milioni; Dipendenti > 250."]
["[3] Per altre attività si intendono conferenze, beneficenza, professione senza posizione corporativa, attività di lavoro autonomo, ecc."]
["[4] Per incarichi esecutivi si intendono, ad esempio, Direttore Generale, Amministratore Delegato, Membro di comitati esecutivi, Consigliere con funzioni di gestione delegate."]
["[5] SI (se fa parte del gruppo Gruppo / di uno Schema di protezione istituzionale / è una partecipazione qualificata); NO (non fa parte di gruppi, SPI o PQ); DA NON CONSIDERARE. Eventuali informazioni aggiuntive vanno riportate nella colonna \"ANNOTAZIONI\"."]
["[6] Non sono da includere nel calcolo le cariche in organizzazioni o enti con finalità commerciale non prevalente. Fra queste. Le organizzazioni/enti  che si presume non perseguano prevalentemente obiettivi commerciali ai fini dell'art. 91, paragrafo 5, della CRD IV sono, ad esempio: 1) le associazioni sportive o culturali senza scopo di lucro; 2) gli enti di beneficenza; 3) le chiese; 4) le camere di commercio, i sindacati e le associazioni professionali e di categoria; 5) le organizzazioni il cui unico scopo consiste nella gestione degli interessi economici privati dei componenti dell'organo di amministrazione e che non richiedono nessun tipo di gestione quotidiana da parte di questi ultimi; 6) le organizzazioni che si presume perseguano prevalentemente obiettivi non commerciali sulla base delle disposizioni regolamentari nazionali. In ogni caso vanno tenute in considerazione la natura dell'attività svolta (ad es., offerta di beni e servizi, destinazione degli eventuali profitti, utili non distribuiti) e la predominanza delle attività non commerciali)."]
["[7] Indicare il dato in giorni/FTE (Full Time Equivalent). Va considerato il tempo richiesto per partecipare alle riunioni dell'organo e affrontare eventuali responsabilità aggiuntive (quali,  ad es., l'appartenenza a comitati, la formazione, il tempo per preparare le riunioni e analizzare la documentazione ad esse relativa, l'attività di follow-up necessaria, il tempo stimato in eccedenza per affrontare eventuali criticità, quello per gli eventuali spostamenti per raggiungere la sede della riunione o dove si deve svolgere  l'attività,nonché quello necessario all'attività di formazione svolta annualmente, funzionale all'incarico, ecc.)"]
["[8]  A titolo indicativo, il dato deve tener conto del numero medio nell'anno di riunioni / incontri / attività in cui l'esponente è presumibilmente coinvolto in relazione alla carica ricoperta. "]
["[9] Indicare qualsiasi informazione ritenuta utile per chiarire la natura dell'incarico aggiuntivo. Ad esempio, è possibile indicare se la società nella quale si riveste l'incarico è quotata o meno, il nome del gruppo / schema di protezione istituzionale / partecipazione qualificata rilevante ai fini del conteggio privilegiato, ovvero specificare la natura delle responsabilità aggiuntive di cui alla relativa colonna."]
[]
["4.2) ATTIVITA' PROFESSIONALE / LAVORATIVA"]
["NUMERO ORDINE","DENOMINAZIONE DEL DATORE DI LAVORO / STUDIO PROFESSIONALE \n[1]",null,null,"ATTIVITA' SVOLTA \n[2]",null,null,null,null,null,null,null,null,null,null,null,null,"IMPEGNO DI TEMPO NELL'ANNO (FTE) [3]  ",null,"ANNOTAZIONI"]
[1]
[2]
[3]
[4]
[5]
[6]
[7]
[8]
[9]
[10]
[]
[null,null,null,null,null,null,null,null,null,null,null,null,null,null,"Giorni totali sez. (4.2)"]
[]
["Note di ausilio alla compilazione della sezione (se necessario, aggiungere altre righe):"]
["[1] indicare il nome dell'ente/amministrazione pubblica/studio professionale presso il quale l'esponente svolge l'attività professionale/lavorativa censita. Qualora l'esponente svolga tale attività al di fuori di un'entità, lasciare il campo vuoto e specificare l'attività svolta nella sezione dedicata."]
["[2] Rientra in tale ambito il lavoro dipendente, attività libero-professionali o di imprenditore (come ditta individuale o socio non amministratore). "]
["[3] Va considerato il tempo mediamente impiegato nell'anno per svolgere l'attività lavorativa o libero-professionale."]
[]
[null,null,null,null,null,null,null,null,null,null,null,"Giorni totali per anno dedicati a tutti gli incarichi (sez. 4.1 + sez. 4.2)"]
[]
["4.3) RISPETTO DEL LIMITE AL NUMERO DI INCARICHI (VINCOLANTE PER LE BANCHE DI MAGGIORI DIMENSIONI E COMPLESSITA'; ORIENTATIVO PER LE TUTTE LE ALTRE)"]
[]
["Considerate le informazioni fornite nella sezione 4.1 e 4.2 della presente scheda, l'esponente dichiara di ricoprire gli incarichi complessivamente riassunti nella seguente tabella:"]
[]
[null,null,null,null,null,null,"Esecutivi",null,null,"Non Esecutivi",null,null,"Totale"]
[null,"Incarichi"]
[null,"di cui computabili nel conteggio privilegiato"]
[null,"non computabili nel conteggio privilegiato"]
[]
["Note di ausilio alla compilazione della sezione:"]
["Indicare nella prima riga il numero complessivo degli incarichi ricoperti, distinti fra esecutivi e non esecutivi. Se ne ricorrono le condizioni, nelle righe successive va distinto il numero di incarichi per i quali è possibile applicare il conteggio privilegiato rispetto a quelli per cui non è possibile farlo.\t\t\t\t\t\t\t\t\t\t\t\t\n"]
[]
["4.4) FORNIRE DI SEGUITO UN DETTAGLIO INFORMATIVO SULL'EVENTUALE ESISTENZA DI SINERGIE TRA LE ATTIVITA' SVOLTE E GLI INCARICHI RICOPERTI, TALI DA GIUSTIFICARE UNA SOVRAPPOSIZIONE IN TERMINI DI IMPEGNO DI TEMPO"]
[]
["QUESTIONARIO DI VERIFICA ESPONENTI AZIENDALI - da compilare a cura dell'intermediario"]
["Dati dell'intermediario in cui è assunta la carica"]
["Codice ABI"]
["Denominazione sociale"]
["Tipologia intermediario"]
[null,null,null,null,null,null,null,null,null,null,"Testo libero"]
["data di compilazione: ________________",null,null,null,null,null,null,null,null,null,"                                                                                    Firma Rappresentante intermediario: _______________________________\nNota: in caso di stampa e acquisizione in formato pdf siglare tutte le pagine"]
[]
["5 - COMPOSIZIONE COLLETTIVA"]
[]
["5.1 Se la banca è quotata, negli organi con funzione di supervisione strategica e di controllo risultanti dal processo di nomina, il numero dei componenti del genere meno rappresentato è compliant con le previsioni del TUF?",null,null,null,null,null,null,null,null,null,null,null,null,null,null,null,null,null,null,"Inserire risposta"]
["5.2 Ove non siano applicabili specifiche previsioni normative, negli organi con funzione di supervisione strategica e di controllo risultanti dal processo di nomina, il numero dei componenti del genere meno rappresentato è pari almeno al 33% dei componenti dell’organo? ",null,null,null,null,null,null,null,null,null,null,null,null,null,null,null,null,null,null,"Inserire risposta"]
["5.3 È stata verificata mediante esame approfondito e formalizzato, la rispondenza tra la composizione quali-quantitativa degli organi con funzione di supervisione strategica e di controllo ritenuta ottimale preventivamente identificata e quella effettiva risultante dal processo di nomina? ",null,null,null,null,null,null,null,null,null,null,null,null,null,null,null,null,null,null,"Inserire risposta"]
["5.4 Specificare la composizione dell'organo compilando la tabella sottostante"]
[" Nota metodologica: La tabella va compilata con riferimento a tutti i componenti dell'organo (nella composizione post-rinnovo)\nQualora nella colonna \"PRINCIPALE COMPETENZA SPECIALISTICA\" sia stata avvalorata l'opzione ALTRO, indicare nella colonna \"ALTRO (specificare)\" l'ulteriore competenza specifica maturata dall'interessato"]
["COGNOME","NOME","ETÀ","AMMINISTRATORE INDIPENDENTE","AMMINISTRATORE ESECUTIVO","DURATA COMPLESSIVA IN MESI DELLA PERMANENZA IN EVENTUALI PRECEDENTI RUOLI NEL CDA O NEL COLLEGIO SINDACALE",null,null,"ESPERIENZA PROFESSIONALE PREVALENTE",null,"PRINCIPALE COMPETENZA SPECIALISTICA",null,"ALTRO \n(specificare)",null,"LA COMPETENZA È PREVISTA NEL DOCUMENTO SULLA COMPOSIZIONE OTTIMALE?",null,"EVENTUALE ULTERIORE COMPETENZA SPECIALISTICA",null,null,"LA COMPETENZA È PREVISTA NEL DOCUMENTO SULLA COMPOSIZIONE OTTIMALE?"]
[]
[]
[]
[]
[]
[]
[]
[]
[]
[]
[]
[]
["5.5 Indicare nello spazio sottostante in che modo l'organo ritiene che l’esponente contribuisca a integrare e a diversificare la composizione collettiva. "]
["Testo libero"]
["5.6 Se la banca è di maggiori dimensioni o complessità operativa, le valutazioni di cui ai quesiti 5.3 e 5.5 sono state svolte con il contributo fattivo del Comitato nomine?",null,null,null,null,null,null,null,null,null,null,null,null,null,null,null,null,null,null,"Inserire risposta"]
["5.7 Nel caso dalla verifica di cui ai punti precedenti siano emerse carenze, l’organo competente ha adottato/programmato misure necessarie a colmarle? \nSe sì, specificare nello spazio sottostante di quali misure si tratta (ad esempio: modifica delle deleghe, piani di formazione) e le relative modalità attuative.",null,null,null,null,null,null,null,null,null,null,null,null,null,null,null,null,null,null,"Inserire risposta"]
["Testo libero"]
["5.8 Se non sono state individuate misure idonee a ripristinare un’adeguata composizione collettiva dell’organo, quest’ultimo ha formulato all’assemblea raccomandazioni per superare le carenze identificate?",null,null,null,null,null,null,null,null,null,null,null,null,null,null,null,null,null,null,"Inserire risposta"]
["5.9 Come previsto dalle buoni prassi (Circolare 285, Parte Prima.IV.1.IV, § 2.1.c),  le cariche di Presidente dell’Organo con funzione di supervisione strategica, Presidente dell’Organo con funzione di controllo, di Amministratore Delegato (se presente) e di Direttore Generale sono ricoperte da esponenti di genere diverso? ",null,null,null,null,null,null,null,null,null,null,null,null,null,null,null,null,null,null,"Inserire risposta"]
["5.10 Come previsto dalle buoni prassi (Circolare 285, Parte Prima.IV.1.IV, § 2.1.c),  nel caso sia già stata stabilita la composizione dei Comitati, ivi inclusi quelli non obbligatori (Circ. 285, Parte Prima.IV.1.IV, § 2.3.1), è previsto che almeno un componente sia del genere meno rappresentato?",null,null,null,null,null,null,null,null,null,null,null,null,null,null,null,null,null,null,"Inserire risposta"]

{"sheet":"elenchi","index":1,"n_rows":88,"n_cols":8,"rows_kept":88,"cut":false,"hidden":true,"merged":[[49,0,73,0],[74,0,88,0],[1,0,15,0],[16,0,19,0],[20,0,30,0],[31,0,39,0],[40,0,43,0],[44,0,48,0]]}
[null,"CARICA ASSUNTA DALL'ENTE","TIPOLOGIA DI INTERMEDIARIO"]
["Menu anagrafica","Presidente CdA","Banca (diversa da quelle sotto indicate)"]
[null,"AD","Banca di minori dimensioni o complessità operativa"]
[null,"Consigliere esecutivo","Banca di maggiori dimensioni o complessità operativa"]
[null,"Consigliere non esecutivo","BCC"]
[null,"Consigliere indipendente","BCC rientrante nella categoria delle banche di minori dimensioni o complessità operativa"]
[null,"Membro del Consiglio di sorveglianza","Società capogruppo di gruppo bancario"]
[null,"Membro del Consiglio di gestione ","Intermediario finanziario"]
[null,"Presidente Coll. Sind.","Intermediario finanziario significativo"]
[null,"Sindaco effettivo","IMEL"]
[null,"Sindaco supplente","IP"]
[null,"DG","IP rilevante per la natura specifica dell'attività svolta"]
[null,"Responsabile principale funzione aziendale","Società fiduciaria"]
[null,"Responsabile di patrimonio destinato per la prestazione di servizi di pagamento o per l'emissione di moneta elettronica","Sistema di garanzia dei depositanti"]
[null,"Responsabile di succursale","Altro (specificare nel campo sottostante)"]
[null,"Altro (specificare nel campo sottostante)"]
["Menu Onorabilità_correttezza","Inserire risposta"]
[null,"SI","SI","OK"]
[null,"NO","NO","NOK"]
[null,"N.A.","N.A."]
["Menu Professionalità_competenza",null,"LIVELLO DI CONOSCENZA","MOTIVAZIONI DELLA FINE DELL'ESPERIENZA","TIPOLOGIA DI ATTIVITÀ","TITOLO DI STUDIO","AMBITI DI COMPETENZA"]
[null,"Inserire Risposta","alta","Dimissioni",null,null,"Art. 10.2.a.1) Mercati Finanziari"]
[null,"SI","medio alta","Fine del mandato","art. 7.1.a) attività di amministrazione o di controllo o compiti direttivi nel settore creditizio, finanziario, mobiliare o assicurativo;","Diploma","Art. 10.2.a.2) Regolamentazione nel settore bancario e finanziario"]
[null,"NO","medio bassa","Promozione","art. 7.1.b) attività di amministrazione o di controllo o compiti direttivi presso società quotate o aventi una dimensione e complessita' maggiore o assimilabile (in termini di fatturato, natura e complessità dell'organizzazione o dell'attività svolta) a quella dellintermediario presso cui l'incarico deve essere ricoperto","Laurea triennale","Art. 10.2.a.3) Indirizzi e programmazione strategica"]
[null,null,"bassa","Altri motivi","art. 7.2.a) attività professionale - di adeguato livello di complessità, anche con riferimento ai destinatari dei servizi prestati, e svolta in via continuativa e rilevante - in materia attinente al settore creditizio, finanziario, mobiliare, assicurativo o comunque funzionale all'attività dell'intermediario","Laurea specialistica","Art. 10.2.a.4) Assetti organizzativi e di governo societari"]
[null,null,null,null,"art. 7.2.b) attività d'insegnamento universitario, in qualità di docente di prima o seconda fascia, in materie giuridiche o economiche o in altre materie comunque funzionali all'attivita' del settore creditizio, finanziario, mobiliare o assicurativo","Laurea quadriennale, quinquennale o a ciclo ","Art. 10.2.a.5) Gestione dei rischi (individuazione, valutazione, monitoraggio, controllo e mitigazione delle principali tipologie di rischio di una banca, incluse le responsabilità dell'esponente in tali processi)"]
[null,null,null,null,"art. 7.2.c) funzioni direttive, dirigenziali o di vertice presso enti pubblici o pubbliche amministrazioni - di dimensione e complessità comparabile con quella dell'intermediario in cui deve essere ricoperta la carica - aventi attinenza con il settore creditizio, finanziario, mobiliare o assicurativo","Dottorato di ricerca","Art. 10.2.a.6) Sistemi di controllo interno e altri meccanismi operativi"]
[null,null,null,null,"art. 8.2.a) attività di amministrazione o di controllo o compiti direttivi presso imprese o enti del settore della cooperazione del credito","Master di I livello","Art. 10.2.a.7) Attività e prodotti bancari e finanziari"]
[null,null,null,null,"art. 8.2.b) attività d'insegnamento in materie giuridiche o economiche o in altre materie comunque funzionali all'attività del settore creditizio, finanziario, mobiliare o assicurativo","Master di II livello","Art. 10.2.a.8) Informativa contabile e finanziaria"]
[null,null,null,null,"art. 8.2.c) funzioni amministrative, direttive, dirigenziali o di vertice presso enti pubblici o pubbliche amministrazioni aventi attinenza con il settore creditizio, finanziario, mobiliare o assicurativo ovvero presso enti pubblici o pubbliche amministrazioni purchè le funzioni svolte comportino la gestione di risorse economico-finanziarie","Corso o scuola di specializzazione","Art. 10.2.a.9) Tecnologia informatica"]
[null,null,null,null,"art. 9.1) attività di revisione legale dei conti","Altro (specificare nella colonna successiva)","Art. 10.3. Coordinamento, indirizzo o gestione di risorse umane tale da assicurare un efficace coordinamento e indirizzo dei lavori del consiglio di amministrazione (competenza necessaria per il presidente del CdA, è richiesto che sia maturata con esperienza pratica)"]
[" foglio_tecnico_prof_esp","SI","alta","Dimissioni","Mercati Finanziari"]
[null,"NO","medio alta","Fine del mandato","Regolamentazione nel settore bancario e finanziario"]
[null,null,"medio bassa","Promozione","Indirizzi e programmazione strategica"]
[null,null,"bassa","Altri motivi","Assetti organizzativi e di governo societari"]
[null,null,null,null,"Gestione dei rischi "]
[null,null,null,null,"Sistemi di controllo interno e altri meccanismi operativi"]
[null,null,null,null,"Attività e prodotti bancari e finanziari"]
[null,null,null,null,"Informativa contabile e finanziaria"]
[null,null,null,null,"Tecnologia informatica"]
["Menu indipendenza","Inserire risposta","Inserire risposta","Inserire risposta"]
[null,"SI","SI","Diretta"]
[null,"NO","NO","Indiretta"]
[null,"N.A."]
["Menu esposizioni finanziarie","Diretta - dell'esponente","SI","Bonis ordinario"]
[null,"Diretta - v/coniuge, convivente, parente o affine fino IV gr.","NO","Sotto osservazione"]
[null,"Indiretta - v/ società controllate",null,"Scadute"]
[null,"Indiretta - v/ società partecipate per almeno il 10%",null,"Inadempienza probabile"]
[null,"Indiretta - v/ società in cui il nominativo è esponente aziendale",null,"Sofferenze"]
["Menu Time_committment","DIMENSIONE ENTE","FUNZIONE ALL'INTERNO DELL'ENTE","INCARICO ESECUTIVO","CONTEGGIO PRIVILEGIATO"]
[]
[null,"Micro Impresa","Presidente del CdA / Consiglio di gestione ","SI","SI (appartiene a un gruppo societario)"]
[null,"Piccola impresa","Componente  del CdA / Consiglio di Gestione","NO","SI (appartiene a uno schema di protezione istituzionale)"]
[null,"Media impresa","Componente del Comitato esecutivo",null,"SI (partecipazione qualificata)"]
[null,"Grande impresa","Componente di Comitati endoconsiliari",null,"NO (non fa parte di gruppi, SPI o PQ)"]
[null,"Altro","Amministratore delegato",null,"Non applicabile - Non inclusa nel calcolo"]
[null,null,"Direttore generale"]
[null,null,"Vice Direttore generale"]
[null,null,"Presidente del Collegio sindacale, Comitato di sorveglianza o organo di controllo"]
[null,null,"Sindaco effettivo / Componente Comitato di sorveglianza o di controllo"]
[null,null,"Sindaco supplente / Componente supplente del Comitato di sorveglianza o di controllo"]
[null,null,"Revisore legale dei conti"]
[null,null,"Curatore fallimentare"]
[null,null,"Commissario giudiziale"]
[null,null,"Liquidatore"]
[null,null,"Amministratore giudiziario"]
[null,null,"Altro"]
[]
[]
[]
[]
[]
[]
[]
["Menu Comp_collettiva","RISPOSTE DOMANDE","AMMINISTRATORE INDIPENDENTE","AMMINISTRATORE ESECUTIVO","ESPERIENZA PROFESSIONALE PREVALENTE","PRINCIPALE COMPETENZA SPECIALISTICA","COMPETENZA PREVISTA NEL DOCUMENTO SULLA COMPOSIZIONE","EVENTUALE ULTERIORE COMPETENZA SPECIALISTICA"]
[null,"Inserire risposta","SI","SI","ACCADEMICA","CONTABILITÀ","SI","CONTABILITÀ"]
[null,"SI","NO","NO","CONSULENZA / REVISIONE","MERCATI FINANZIARI","NO","MERCATI FINANZIARI"]
[null,"NO",null,null,"IMPRENDITORIALE","IT",null,"IT"]
[null,null,null,null,"ISTITUZIONALE","LEGALE",null,"LEGALE"]
[null,null,null,null,"MANAGERIALE - ALTRO","ORGANIZZAZIONE PROCESSI SISTEMA CONTROLLI INTERNI",null,"ORGANIZZAZIONE PROCESSI SISTEMA CONTROLLI INTERNI"]
[null,null,null,null,"MANAGERIALE - SETTORE BANCARIO / FINANZIARIO","RISK MANAGEMENT",null,"RISK MANAGEMENT"]
[null,null,null,null,null,"RISORSE UMANE",null,"RISORSE UMANE"]
[null,null,null,null,null,"TESSUTO ECONOMICO LOCALE",null,"TESSUTO ECONOMICO LOCALE"]
[null,null,null,null,null,"REGOLAMENTAZIONE SETTORE BANCARIO/FINANZIARIO",null,"REGOLAMENTAZIONE SETTORE BANCARIO/FINANZIARIO"]
[null,null,null,null,null,"INDIRIZZI/PROGRAMMAZ STRATEGICA",null,"INDIRIZZI/PROGRAMMAZ STRATEGICA"]
[null,null,null,null,null,"GOVERNANCE",null,"GOVERNANCE"]
[null,null,null,null,null,"PRODOTTI BANCARI/FINANZIARI",null,"PRODOTTI BANCARI/FINANZIARI"]
[null,null,null,null,null,"ALTRO"]